{"text_format":"1","workbook":"xlsx","n_sheets":2,"sheets":["Выгрузки","Отчет"],"not_rendered":{"charts":0,"images":0,"macros":1,"external_links":0,"defined_names":1,"comments":0,"pivot_tables":0},"unopened":[],"bounds":{"document_bytes":16777216,"sheet_cells":100000,"rows_first":2000,"rows_last":500,"rows_between":2000,"halvings":0,"cell_chars":16384,"cell_head_chars":4096},"cells_cut":0,"cells_raw":0,"read":"whole","date_system":"1900"}

{"sheet":"Выгрузки","index":0,"n_rows":680,"n_cols":8,"rows_kept":680,"cut":false,"hidden":false,"merged":[]}
["Путь к папке"]
["C:\\Users\\burkeevaz\\Downloads\\Проходная\\Выгрузка отчетов"]
[null,null,{"$f":"A6<Отчет!B3","v":true}]
[]
["Дата, время события","Источник события","Событие","ФИО","Доп.поле 03","Доп.поле 04","Подразделение","Организация"]
["2020-09-23T13:41:55","Турникет 1 КПП1","Предоставление доступа на вход  ","ФИО 1"]
["2020-09-23T14:09:02","Турникет 1 КПП1","Предоставление доступа на вход  ","ФИО 1"]
["2020-09-23T14:09:44","Турникет 1 КПП1","Предоставление доступа на вход  ","ФИО 1"]
["2020-09-28T11:40:06","Турникет 1 КПП1","Предоставление доступа на вход  ","ФИО 1"]
["2020-09-28T11:40:16","Турникет 1 КПП1","Предоставление доступа на вход  ","ФИО 1"]
["2020-09-28T11:40:29","Турникет 1 КПП1","Предоставление доступа на вход  ","ФИО 1"]
["2020-09-28T11:40:44","Турникет 1 КПП1","Предоставление доступа на вход  ","ФИО 1"]
["2020-09-28T13:25:25","Турникет 1 КПП1","Предоставление доступа на вход  ","ФИО 1"]
["2020-09-28T13:25:32","Турникет 1 КПП1","Предоставление доступа на вход  ","ФИО 1"]
["2020-09-28T13:25:42","Турникет 1 КПП1","Предоставление доступа на вход  ","ФИО 1"]
["2020-09-29T09:32:40","Турникет 1 КПП1","Предоставление доступа на вход  ","ФИО 1"]
["2020-09-29T09:32:57","Турникет 1 КПП1","Предоставление доступа на вход  ","ФИО 1"]
["2020-09-29T09:33:13","Турникет 1 КПП1","Предоставление доступа на вход  ","ФИО 1"]
["2020-09-29T09:33:33","Турникет 1 КПП1","Предоставление доступа на вход  ","ФИО 2"]
["2020-09-29T10:33:38","Турникет 1 КПП1","Предоставление доступа на вход  ","ФИО 2"]
["2020-09-29T10:33:53","Турникет 1 КПП1","Предоставление доступа на вход  ","ФИО 2"]
["2020-09-29T10:34:06","Турникет 1 КПП1","Предоставление доступа на вход  ","ФИО 2"]
["2020-09-29T10:50:45","Турникет 1 КПП1","Предоставление доступа на вход  ","ФИО 2"]
["2020-10-07T08:45:23","Турникет 1 КПП1","Предоставление доступа на вход  ","ФИО 2"]
["2020-10-07T08:45:45","Турникет 1 КПП1","Предоставление доступа на вход  ","ФИО 2"]
["2020-10-07T09:31:12","Турникет 1 КПП1","Предоставление доступа на вход  ","ФИО 2"]
["2020-10-07T09:31:33","Турникет 1 КПП1","Предоставление доступа на вход  ","ФИО 2"]
["2020-10-08T08:59:23","Турникет 1 КПП1","Предоставление доступа на вход  ","ФИО 2"]
["2020-10-08T08:59:47","Турникет 1 КПП1","Предоставление доступа на вход  ","ФИО 2"]
["2020-10-08T13:25:12","Турникет 1 КПП1","Предоставление доступа на вход  ","ФИО 2"]
["2020-10-08T13:26:52","Турникет 1 КПП1","Предоставление доступа на вход  ","ФИО 2"]
["2020-10-08T13:45:06","Турникет 1 КПП1","Предоставление доступа на вход  ","ФИО 2"]
["2020-10-08T13:45:14","Турникет 1 КПП1","Предоставление доступа на вход  ","ФИО 2"]
["2020-10-09T08:33:14","Турникет 1 КПП1","Предоставление доступа на вход  ","ФИО 2"]
["2020-10-09T08:39:01","Турникет 1 КПП1","Предоставление доступа на вход  ","ФИО 2"]
["2020-10-09T08:40:24","Турникет 1 КПП1","Предоставление доступа на вход  ","ФИО 2"]
["2020-10-09T09:12:38","Турникет 1 КПП1","Предоставление доступа на вход  ","ФИО 2"]
["2020-10-09T13:09:19","Турникет 1 КПП1","Предоставление доступа на вход  ","ФИО 2"]
["2020-10-09T13:09:37","Турникет 1 КПП1","Предоставление доступа на вход  ","ФИО 2"]
["2020-10-09T13:09:49","Турникет 1 КПП1","Предоставление доступа на вход  ","ФИО 2"]
["2020-10-09T13:10:03","Турникет 1 КПП1","Предоставление доступа на вход  ","ФИО 2"]
["2020-10-09T14:28:22","Турникет №1 ИПК","Предоставление доступа на вход  ","ФИО 2"]
["2020-10-12T08:43:27","Турникет 1 КПП1","Предоставление доступа на вход  ","ФИО 2"]
["2020-10-12T08:44:25","Турникет 1 КПП1","Предоставление доступа на вход  ","ФИО 2"]
["2020-10-12T08:44:38","Турникет 1 КПП1","Предоставление доступа на вход  ","ФИО 2"]
["2020-10-12T12:50:04","Турникет 1 КПП1","Предоставление доступа на вход  ","ФИО 2"]
["2020-10-12T12:50:13","Турникет 1 КПП1","Предоставление доступа на вход  ","ФИО 2"]
["2020-10-13T08:38:20","Турникет 1 КПП1","Предоставление доступа на вход  ","ФИО 2"]
["2020-10-13T08:38:34","Турникет 1 КПП1","Предоставление доступа на вход  ","ФИО 2"]
["2020-10-13T08:38:40","Турникет 1 КПП1","Предоставление доступа на вход  ","ФИО 2"]
["2020-10-13T08:39:04","Турникет 1 КПП1","Предоставление доступа на вход  ","ФИО 3"]
["2020-10-13T09:31:22","Турникет №2 ИПК","Предоставление доступа на вход  ","ФИО 3"]
["2020-10-13T10:48:38","Турникет №1 ИПК","Предоставление доступа на вход  ","ФИО 3"]
["2020-10-13T10:55:12","Турникет 1 КПП1","Предоставление доступа на вход  ","ФИО 3"]
["2020-10-13T10:55:20","Турникет 1 КПП1","Предоставление доступа на вход  ","ФИО 3"]
["2020-10-14T13:24:48","Турникет 1 КПП1","Предоставление доступа на вход  ","ФИО 3"]
["2020-10-14T13:25:11","Турникет 1 КПП1","Предоставление доступа на вход  ","ФИО 3"]
["2020-10-15T09:18:13","Турникет №1 КПП 3","Предоставление доступа на вход  ","ФИО 3"]
["2020-10-15T09:18:24","Турникет №1 КПП 3","Предоставление доступа на вход  ","ФИО 3"]
["2020-10-15T13:33:15","Турникет №1 ИПК","Предоставление доступа на вход  ","ФИО 3"]
["2020-10-20T08:52:10","Турникет №1 ИПК","Предоставление доступа на вход  ","ФИО 3"]
["2020-10-20T10:20:14","Турникет 1 КПП1","Предоставление доступа на вход  ","ФИО 3"]
["2020-10-20T10:20:23","Турникет 1 КПП1","Предоставление доступа на вход  ","ФИО 3"]
["2020-10-20T10:20:45","Турникет 1 КПП1","Предоставление доступа на вход  ","ФИО 3"]
["2020-10-20T10:20:58","Турникет 1 КПП1","Предоставление доступа на вход  ","ФИО 3"]
["2020-10-20T10:21:14","Турникет 1 КПП1","Предоставление доступа на вход  ","ФИО 3"]
["2020-10-20T10:25:38","Турникет №1 ИПК","Предоставление доступа на вход  ","ФИО 3"]
["2020-10-20T12:40:44","Турникет №1 ИПК","Предоставление доступа на вход  ","ФИО 3"]
["2020-10-21T09:53:50","Турникет №1 ИПК","Предоставление доступа на вход  ","ФИО 3"]
["2020-10-21T10:23:28","Турникет 1 КПП1","Предоставление доступа на вход  ","ФИО 3"]
["2020-10-21T10:23:42","Турникет 1 КПП1","Предоставление доступа на вход  ","ФИО 3"]
["2020-10-21T10:23:46","Турникет 1 КПП1","Предоставление доступа на вход  ","ФИО 3"]
["2020-10-21T10:25:55","Турникет 1 КПП1","Предоставление доступа на вход  ","ФИО 3"]
["2020-10-21T13:40:11","Турникет №1 КПП 3","Предоставление доступа на вход  ","ФИО 3"]
["2020-10-23T08:41:41","Турникет №1 ИПК","Предоставление доступа на вход  ","ФИО 3"]
["2020-10-23T08:41:54","Турникет №1 ИПК","Предоставление доступа на вход  ","ФИО 3"]
["2020-10-23T08:43:11","Турникет №1 ИПК","Предоставление доступа на вход  ","ФИО 3"]
["2020-10-23T08:44:14","Турникет №1 ИПК","Предоставление доступа на вход  ","ФИО 3"]
["2020-10-23T08:55:56","Турникет №1 ИПК","Предоставление доступа на вход  ","ФИО 3"]
["2020-10-23T11:01:17","Турникет №2 ИПК","Предоставление доступа на вход  ","ФИО 3"]
["2020-10-23T11:01:26","Турникет №1 ИПК","Предоставление доступа на вход  ","ФИО 3"]
["2020-10-27T08:57:59","Турникет №1 ИПК","Предоставление доступа на вход  ","ФИО 3"]
["2020-10-28T09:19:35","Турникет №2 ИПК","Предоставление доступа на вход  ","ФИО 3"]
["2020-10-29T11:19:24","Турникет №1 ИПК","Предоставление доступа на вход  ","ФИО 3"]
["2020-10-30T11:05:38","Турникет №1 ИПК","Предоставление доступа на вход  ","ФИО 3"]
["2020-10-30T11:26:02","Турникет 1 КПП1","Предоставление доступа на вход  ","ФИО 3"]
["2020-10-30T11:26:23","Турникет 1 КПП1","Предоставление доступа на вход  ","ФИО 3"]
["2020-11-10T09:55:03","Турникет №2 ИПК","Предоставление доступа на вход  ","ФИО 3"]
["2020-11-10T09:55:11","Турникет №2 ИПК","Предоставление доступа на вход  ","ФИО 3"]
["2020-11-10T10:46:01","Турникет №2 ИПК","Предоставление доступа на вход  ","ФИО 3"]
["2020-11-10T13:12:20","Турникет 1 КПП1","Предоставление доступа на вход  ","ФИО 3"]
["2020-11-10T13:12:32","Турникет 1 КПП1","Предоставление доступа на вход  ","ФИО 3"]
["2020-11-10T13:12:46","Турникет 1 КПП1","Предоставление доступа на вход  ","ФИО 3"]
["2020-11-10T15:20:39","Турникет №2 ИПК","Предоставление доступа на вход  ","ФИО 3"]
["2020-11-11T10:35:34","Турникет 1 КПП1","Предоставление доступа на вход  ","ФИО 3"]
["2020-11-11T10:49:42","Турникет №1 ИПК","Предоставление доступа на вход  ","ФИО 3"]
["2020-11-11T10:56:19","Турникет 1 КПП1","Предоставление доступа на вход  ","ФИО 3"]
["2020-11-11T10:56:29","Турникет 1 КПП1","Предоставление доступа на вход  ","ФИО 3"]
["2020-11-11T11:40:23","Турникет 1 КПП1","Предоставление доступа на вход  ","ФИО 3"]
["2020-11-12T09:58:08","Турникет 1 КПП1","Предоставление доступа на вход  ","ФИО 3"]
["2020-11-12T10:11:37","Турникет №2 ИПК","Предоставление доступа на вход  ","ФИО 3"]
["2020-11-16T08:46:35","Турникет №1 ИПК","Предоставление доступа на вход  ","ФИО 3"]
["2020-11-16T08:47:19","Турникет №1 ИПК","Предоставление доступа на вход  ","ФИО 3"]
["2020-11-16T08:47:52","Турникет №1 ИПК","Предоставление доступа на вход  ","ФИО 3"]
["2020-11-16T09:25:24","Калитка БО","Предоставление доступа на вход  ","ФИО 3"]
["2020-11-16T09:25:33","Калитка БО","Предоставление доступа на вход  ","ФИО 3"]
["2020-11-16T11:07:10","Турникет №1 КПП 3","Предоставление доступа на вход  ","ФИО 3"]
["2020-11-16T11:07:20","Турникет №1 КПП 3","Предоставление доступа на вход  ","ФИО 3"]
["2020-11-16T11:07:31","Турникет №1 КПП 3","Предоставление доступа на вход  ","ФИО 3"]
["2020-11-17T09:04:49","Турникет №1 КПП 3","Предоставление доступа на вход  ","ФИО 3"]
["2020-11-17T09:05:20","Турникет №1 КПП 3","Предоставление доступа на вход  ","ФИО 3"]
["2020-11-17T09:37:53","Турникет 1 КПП1","Предоставление доступа на вход  ","ФИО 3"]
["2020-11-17T10:12:07","Турникет №1 КПП 3","Предоставление доступа на вход  ","ФИО 3"]
["2020-11-17T10:33:48","Турникет 1 КПП1","Предоставление доступа на вход  ","ФИО 3"]
["2020-11-17T10:34:00","Турникет 1 КПП1","Предоставление доступа на вход  ","ФИО 3"]
["2020-11-17T10:34:16","Турникет 1 КПП1","Предоставление доступа на вход  ","ФИО 3"]
["2020-11-17T10:34:29","Турникет 1 КПП1","Предоставление доступа на вход  ","ФИО 3"]
["2020-11-17T10:43:12","Турникет 1 КПП1","Предоставление доступа на вход  ","ФИО 3"]
["2020-11-17T11:00:14","Турникет №1 КПП 3","Предоставление доступа на вход  ","ФИО 3"]
["2020-11-18T09:43:41","Турникет №1 КПП 3","Предоставление доступа на вход  ","ФИО 3"]
["2020-11-18T09:44:20","Турникет №1 КПП 3","Предоставление доступа на вход  ","ФИО 3"]
["2020-11-18T09:45:43","Турникет №1 КПП 3","Предоставление доступа на вход  ","ФИО 3"]
["2020-11-18T12:53:02","Турникет №1 ИПК","Предоставление доступа на вход  ","ФИО 3"]
["2020-11-18T12:53:08","Турникет №1 ИПК","Предоставление доступа на вход  ","ФИО 3"]
["2020-11-18T12:53:14","Турникет №1 ИПК","Предоставление доступа на вход  ","ФИО 3"]
["2020-11-18T13:04:45","Калитка БО","Предоставление доступа на вход  ","ФИО 3"]
["2020-11-18T13:04:56","Калитка БО","Предоставление доступа на вход  ","ФИО 3"]
["2020-11-18T13:05:02","Калитка БО","Предоставление доступа на вход  ","ФИО 3"]
["2020-11-18T14:07:55","Турникет №1 КПП 3","Предоставление доступа на вход  ","ФИО 3"]
["2020-11-19T12:07:54","Турникет №1 КПП 3","Предоставление доступа на вход  ","ФИО 3"]
["2020-11-19T12:07:59","Турникет №1 КПП 3","Предоставление доступа на вход  ","ФИО 3"]
["2020-11-19T12:08:04","Турникет №1 КПП 3","Предоставление доступа на вход  ","ФИО 3"]
["2020-11-19T12:52:52","Турникет №1 КПП 3","Предоставление доступа на вход  ","ФИО 3"]
["2020-11-20T10:12:55","Турникет №1 ИПК","Предоставление доступа на вход  ","ФИО 3"]
["2020-11-20T10:26:05","Турникет 1 КПП1","Предоставление доступа на вход  ","ФИО 3"]
["2020-11-20T10:26:10","Турникет 1 КПП1","Предоставление доступа на вход  ","ФИО 3"]
["2020-11-20T10:26:15","Турникет 1 КПП1","Предоставление доступа на вход  ","ФИО 3"]
["2020-11-20T10:26:25","Турникет 1 КПП1","Предоставление доступа на вход  ","ФИО 3"]
["2020-11-20T10:26:40","Турникет 1 КПП1","Предоставление доступа на вход  ","ФИО 3"]
["2020-11-20T10:26:53","Турникет 1 КПП1","Предоставление доступа на вход  ","ФИО 3"]
["2020-11-24T13:21:07","Турникет №1 ИПК","Предоставление доступа на вход  ","ФИО 3"]
["2020-11-25T10:19:11","Турникет №2 ИПК","Предоставление доступа на вход  ","ФИО 3"]
["2020-11-25T13:09:55","Турникет №2 ИПК","Предоставление доступа на вход  ","ФИО 3"]
["2020-11-26T09:46:33","Турникет №1 КПП 3","Предоставление доступа на вход  ","ФИО 3"]
["2020-11-26T11:14:08","Турникет №1 ИПК","Предоставление доступа на вход  ","ФИО 3"]
["2020-11-26T11:31:51","Турникет №1 ИПК","Предоставление доступа на вход  ","ФИО 3"]
["2020-11-26T11:34:35","Турникет №1 ИПК","Предоставление доступа на вход  ","ФИО 3"]
["2020-11-26T11:38:54","Турникет 1 КПП1","Предоставление доступа на вход  ","ФИО 3"]
["2020-11-26T11:39:08","Турникет 1 КПП1","Предоставление доступа на вход  ","ФИО 3"]
["2020-11-26T11:39:18","Турникет 1 КПП1","Предоставление доступа на вход  ","ФИО 3"]
["2020-11-26T11:39:37","Турникет 1 КПП1","Предоставление доступа на вход  ","ФИО 3"]
["2020-11-26T13:16:31","Турникет №1 ИПК","Предоставление доступа на вход  ","ФИО 3"]
["2020-11-26T13:24:47","Турникет 1 КПП1","Предоставление доступа на вход  ","ФИО 3"]
["2020-11-26T13:25:07","Турникет 1 КПП1","Предоставление доступа на вход  ","ФИО 3"]
["2020-11-26T13:31:57","Турникет 1 КПП1","Предоставление доступа на вход  ","ФИО 3"]
["2020-11-26T13:50:12","Турникет 1 КПП1","Предоставление доступа на вход  ","ФИО 3"]
["2020-11-26T13:50:21","Турникет 1 КПП1","Предоставление доступа на вход  ","ФИО 3"]
["2020-11-26T13:57:12","Турникет 1 КПП1","Предоставление доступа на вход  ","ФИО 4"]
["2020-11-26T13:59:20","Турникет №1 КПП 3","Предоставление доступа на вход  ","ФИО 4"]
["2020-11-27T08:52:43","Турникет №2 ИПК","Предоставление доступа на вход  ","ФИО 4"]
["2020-11-27T08:52:53","Турникет №2 ИПК","Предоставление доступа на вход  ","ФИО 4"]
["2020-11-27T08:53:15","Турникет №2 ИПК","Предоставление доступа на вход  ","ФИО 4"]
["2020-11-27T10:01:03","Турникет 1 КПП1","Предоставление доступа на вход  ","ФИО 4"]
["2020-11-27T10:01:45","Турникет 1 КПП1","Предоставление доступа на вход  ","ФИО 4"]
["2020-11-27T10:06:43","Турникет 1 КПП1","Предоставление доступа на вход  ","ФИО 4"]
["2020-11-27T10:35:01","Турникет 1 КПП1","Предоставление доступа на вход  ","ФИО 4"]
["2020-11-27T10:35:07","Турникет 1 КПП1","Предоставление доступа на вход  ","ФИО 4"]
["2020-11-27T10:41:58","Турникет №1 КПП 3","Предоставление доступа на вход  ","ФИО 4"]
["2020-11-27T10:43:56","Турникет №1 КПП 3","Предоставление доступа на вход  ","ФИО 4"]
["2020-11-27T13:29:12","Турникет №1 ИПК","Предоставление доступа на вход  ","ФИО 4"]
["2020-11-27T13:41:43","Турникет №1 ИПК","Предоставление доступа на вход  ","ФИО 4"]
["2020-11-27T15:01:36","Турникет №1 КПП 3","Предоставление доступа на вход  ","ФИО 4"]
["2020-11-27T15:07:25","Турникет №1 КПП 3","Предоставление доступа на вход  ","ФИО 4"]
["2020-11-27T15:07:52","Турникет №1 КПП 3","Предоставление доступа на вход  ","ФИО 4"]
["2020-11-27T15:08:05","Турникет №1 КПП 3","Предоставление доступа на вход  ","ФИО 4"]
["2020-11-27T15:08:25","Турникет №1 КПП 3","Предоставление доступа на вход  ","ФИО 4"]
["2020-11-30T09:05:59","Турникет №1 КПП 3","Предоставление доступа на вход  ","ФИО 4"]
["2020-11-30T09:06:16","Турникет №1 КПП 3","Предоставление доступа на вход  ","ФИО 4"]
["2020-11-30T09:06:26","Турникет №1 КПП 3","Предоставление доступа на вход  ","ФИО 4"]
["2020-11-30T09:06:37","Турникет №1 КПП 3","Предоставление доступа на вход  ","ФИО 4"]
["2020-11-30T09:07:07","Турникет №1 КПП 3","Предоставление доступа на вход  ","ФИО 4"]
["2020-11-30T13:18:36","Турникет №1 КПП 3","Предоставление доступа на вход  ","ФИО 4"]
["2020-11-30T13:18:43","Турникет №1 КПП 3","Предоставление доступа на вход  ","ФИО 4"]
["2020-11-30T13:18:50","Турникет №1 КПП 3","Предоставление доступа на вход  ","ФИО 4"]
["2020-11-30T13:38:14","Турникет №1 ИПК","Предоставление доступа на вход  ","ФИО 4"]
["2020-11-30T13:38:23","Турникет №1 ИПК","Предоставление доступа на вход  ","ФИО 4"]
["2020-11-30T13:38:33","Турникет №1 ИПК","Предоставление доступа на вход  ","ФИО 4"]
["2020-11-30T13:53:15","Турникет №1 КПП 3","Предоставление доступа на вход  ","ФИО 4"]
["2020-11-30T13:53:16","Калитка БО","Предоставление доступа на вход  ","ФИО 4"]
["2020-11-30T13:53:21","Калитка БО","Предоставление доступа на вход  ","ФИО 4"]
["2020-12-01T08:44:09","Турникет №1 КПП 3","Предоставление доступа на вход  ","ФИО 4"]
["2020-12-01T09:49:39","Турникет №1 КПП 3","Предоставление доступа на вход  ","ФИО 4"]
["2020-12-01T09:49:49","Турникет №1 КПП 3","Предоставление доступа на вход  ","ФИО 4"]
["2020-12-01T09:49:57","Турникет №1 КПП 3","Предоставление доступа на вход  ","ФИО 4"]
["2020-12-01T09:50:13","Турникет №1 КПП 3","Предоставление доступа на вход  ","ФИО 4"]
["2020-12-01T13:13:45","Турникет №1 КПП 3","Предоставление доступа на вход  ","ФИО 4"]
["2020-12-01T13:13:55","Турникет №1 КПП 3","Предоставление доступа на вход  ","ФИО 4"]
["2020-12-01T13:18:49","Турникет №1 КПП 3","Предоставление доступа на вход  ","ФИО 4"]
["2020-12-01T13:18:57","Турникет №1 КПП 3","Предоставление доступа на вход  ","ФИО 4"]
["2020-12-01T13:19:10","Турникет №1 КПП 3","Предоставление доступа на вход  ","ФИО 4"]
["2020-12-01T14:38:00","Турникет №1 ИПК","Предоставление доступа на вход  ","ФИО 4"]
["2020-12-01T14:52:28","Турникет №1 КПП 3","Предоставление доступа на вход  ","ФИО 4"]
["2020-12-02T11:13:39","Турникет №1 ИПК","Предоставление доступа на вход  ","ФИО 4"]
["2020-12-02T14:08:40","Турникет №1 КПП 3","Предоставление доступа на вход  ","ФИО 4"]
["2020-12-02T14:08:56","Турникет №1 КПП 3","Предоставление доступа на вход  ","ФИО 4"]
["2020-12-02T14:09:11","Турникет №1 КПП 3","Предоставление доступа на вход  ","ФИО 4"]
["2020-12-02T14:09:25","Турникет №1 КПП 3","Предоставление доступа на вход  ","ФИО 4"]
["2020-12-02T14:09:34","Турникет №1 КПП 3","Предоставление доступа на вход  ","ФИО 4"]
["2020-12-02T14:19:58","Турникет №1 КПП 3","Предоставление доступа на вход  ","ФИО 4"]
["2020-12-02T14:25:28","Турникет №1 ИПК","Предоставление доступа на вход  ","ФИО 4"]
["2020-12-02T14:25:41","Турникет №1 ИПК","Предоставление доступа на вход  ","ФИО 4"]
["2020-12-02T14:25:58","Турникет №2 ИПК","Предоставление доступа на вход  ","ФИО 4"]
["2020-12-02T14:26:05","Турникет №2 ИПК","Предоставление доступа на вход  ","ФИО 4"]
["2020-12-02T14:44:41","Турникет №1 КПП 3","Предоставление доступа на вход  ","ФИО 4"]
["2020-12-02T14:44:51","Турникет №1 КПП 3","Предоставление доступа на вход  ","ФИО 4"]
["2020-12-03T09:07:50","Турникет №1 КПП 3","Предоставление доступа на вход  ","ФИО 4"]
["2020-12-03T09:08:17","Турникет №1 КПП 3","Предоставление доступа на вход  ","ФИО 4"]
["2020-12-03T09:08:56","Турникет №1 КПП 3","Предоставление доступа на вход  ","ФИО 4"]
["2020-12-03T09:20:52","Турникет №1 КПП 3","Предоставление доступа на вход  ","ФИО 4"]
["2020-12-03T13:18:08","Турникет №1 КПП 3","Предоставление доступа на вход  ","ФИО 4"]
["2020-12-03T13:18:35","Турникет №1 КПП 3","Предоставление доступа на вход  ","ФИО 4"]
["2020-12-03T13:18:59","Турникет №1 КПП 3","Предоставление доступа на вход  ","ФИО 4"]
["2020-12-03T13:19:16","Турникет №1 КПП 3","Предоставление доступа на вход  ","ФИО 4"]
["2020-12-03T14:53:58","Турникет №1 КПП 3","Предоставление доступа на вход  ","ФИО 4"]
["2020-12-03T14:54:08","Турникет №1 КПП 3","Предоставление доступа на вход  ","ФИО 4"]
["2020-12-03T14:54:22","Турникет №1 КПП 3","Предоставление доступа на вход  ","ФИО 4"]
["2020-12-03T15:52:26","Турникет №1 ИПК","Предоставление доступа на вход  ","ФИО 4"]
["2020-12-03T15:52:48","Турникет №1 ИПК","Предоставление доступа на вход  ","ФИО 4"]
["2020-12-04T09:30:15","Турникет №1 ИПК","Предоставление доступа на вход  ","ФИО 4"]
["2020-12-04T09:39:55","Турникет №1 ИПК","Предоставление доступа на вход  ","ФИО 4"]
["2020-12-04T12:29:42","Турникет №1 КПП 3","Предоставление доступа на вход  ","ФИО 4"]
["2020-12-04T12:29:57","Турникет №1 КПП 3","Предоставление доступа на вход  ","ФИО 4"]
["2020-12-04T12:30:07","Турникет №1 КПП 3","Предоставление доступа на вход  ","ФИО 4"]
["2020-12-04T14:06:17","Турникет №1 КПП 3","Предоставление доступа на вход  ","ФИО 4"]
["2020-12-04T14:15:21","Турникет 1 КПП1","Предоставление доступа на вход  ","ФИО 4"]
["2020-12-04T14:15:57","Турникет 1 КПП1","Предоставление доступа на вход  ","ФИО 4"]
["2020-12-04T14:17:49","Турникет 1 КПП1","Предоставление доступа на вход  ","ФИО 4"]
["2020-12-04T14:19:34","Турникет 1 КПП1","Предоставление доступа на вход  ","ФИО 4"]
["2020-12-04T14:28:01","Турникет №1 КПП 3","Предоставление доступа на вход  ","ФИО 4"]
["2020-12-04T14:51:58","Турникет №1 КПП 3","Предоставление доступа на вход  ","ФИО 4"]
["2020-12-04T15:02:46","Турникет №1 ИПК","Предоставление доступа на вход  ","ФИО 4"]
["2020-12-04T15:02:49","Турникет №1 ИПК","Предоставление доступа на вход  ","ФИО 4"]
["2020-12-07T08:31:47","Турникет №1 КПП 3","Предоставление доступа на вход  ","ФИО 4"]
["2020-12-07T08:31:55","Турникет №1 КПП 3","Предоставление доступа на вход  ","ФИО 4"]
["2020-12-07T08:32:00","Турникет №1 КПП 3","Предоставление доступа на вход  ","ФИО 4"]
["2020-12-07T08:32:08","Турникет №1 КПП 3","Предоставление доступа на вход  ","ФИО 4"]
["2020-12-07T08:32:13","Турникет №1 КПП 3","Предоставление доступа на вход  ","ФИО 4"]
["2020-12-07T08:32:37","Турникет №1 КПП 3","Предоставление доступа на вход  ","ФИО 4"]
["2020-12-07T08:35:48","Турникет №1 КПП 3","Предоставление доступа на вход  ","ФИО 4"]
["2020-12-07T08:37:11","Турникет №1 КПП 3","Предоставление доступа на вход  ","ФИО 4"]
["2020-12-07T08:38:18","Турникет №1 КПП 3","Предоставление доступа на вход  ","ФИО 4"]
["2020-12-07T10:13:11","Турникет №1 ИПК","Предоставление доступа на вход  ","ФИО 4"]
["2020-12-07T10:46:55","Турникет №1 КПП 3","Предоставление доступа на вход  ","ФИО 4"]
["2020-12-07T10:47:10","Турникет №1 КПП 3","Предоставление доступа на вход  ","ФИО 4"]
["2020-12-07T11:38:28","Турникет №1 КПП 3","Предоставление доступа на вход  ","ФИО 4"]
["2020-12-07T11:42:39","Турникет 1 КПП1","Предоставление доступа на вход  ","ФИО 4"]
["2020-12-07T13:24:10","Турникет №1 КПП 3","Предоставление доступа на вход  ","ФИО 4"]
["2020-12-07T13:24:23","Турникет №1 КПП 3","Предоставление доступа на вход  ","ФИО 4"]
["2020-12-07T13:24:36","Турникет №1 КПП 3","Предоставление доступа на вход  ","ФИО 4"]
["2020-12-07T13:25:03","Турникет №1 КПП 3","Предоставление доступа на вход  ","ФИО 4"]
["2020-12-07T13:25:37","Турникет №1 КПП 3","Предоставление доступа на вход  ","ФИО 4"]
["2020-12-07T13:26:10","Турникет №1 КПП 3","Предоставление доступа на вход  ","ФИО 4"]
["2020-12-07T13:26:30","Турникет №1 КПП 3","Предоставление доступа на вход  ","ФИО 4"]
["2020-12-07T13:27:08","Турникет №1 КПП 3","Предоставление доступа на вход  ","ФИО 4"]
["2020-12-07T13:49:07","Турникет №1 КПП 3","Предоставление доступа на вход  ","ФИО 4"]
["2020-12-07T13:50:58","Турникет №1 КПП 3","Предоставление доступа на вход  ","ФИО 4"]
["2020-12-07T15:28:40","Турникет №1 КПП 3","Предоставление доступа на вход  ","ФИО 4"]
["2020-12-07T15:29:02","Турникет №1 КПП 3","Предоставление доступа на вход  ","ФИО 4"]
["2020-12-07T15:40:52","Турникет 1 КПП1","Предоставление доступа на вход  ","ФИО 4"]
["2020-12-07T15:42:04","Турникет 1 КПП1","Предоставление доступа на вход  ","ФИО 4"]
["2020-12-08T08:10:26","Турникет №1 КПП 3","Предоставление доступа на вход  ","ФИО 4"]
["2020-12-08T08:11:13","Турникет №1 КПП 3","Предоставление доступа на вход  ","ФИО 4"]
["2020-12-08T08:11:29","Турникет №1 КПП 3","Предоставление доступа на вход  ","ФИО 4"]
["2020-12-08T08:11:34","Турникет №1 КПП 3","Предоставление доступа на вход  ","ФИО 4"]
["2020-12-08T08:11:40","Турникет №1 КПП 3","Предоставление доступа на вход  ","ФИО 4"]
["2020-12-08T08:11:53","Турникет №1 КПП 3","Предоставление доступа на вход  ","ФИО 4"]
["2020-12-08T08:14:52","Турникет №1 КПП 3","Предоставление доступа на вход  ","ФИО 4"]
["2020-12-08T08:23:29","Турникет №1 КПП 3","Предоставление доступа на вход  ","ФИО 4"]
["2020-12-08T08:54:02","Турникет №1 КПП 3","Предоставление доступа на вход  ","ФИО 4"]
["2020-12-08T09:32:43","Турникет №1 ИПК","Предоставление доступа на вход  ","ФИО 4"]
["2020-12-08T09:35:21","Турникет №1 ИПК","Предоставление доступа на вход  ","ФИО 4"]
["2020-12-08T13:17:20","Турникет №1 КПП 3","Предоставление доступа на вход  ","ФИО 4"]
["2020-12-08T13:17:32","Турникет №1 КПП 3","Предоставление доступа на вход  ","ФИО 4"]
["2020-12-08T13:17:42","Турникет №1 КПП 3","Предоставление доступа на вход  ","ФИО 4"]
["2020-12-08T13:17:55","Турникет №1 КПП 3","Предоставление доступа на вход  ","ФИО 4"]
["2020-12-08T13:33:01","Турникет 1 КПП1","Предоставление доступа на вход  ","ФИО 4"]
["2020-12-08T13:35:32","Турникет №1 КПП 3","Предоставление доступа на вход  ","ФИО 4"]
["2020-12-08T13:54:06","Турникет 1 КПП1","Предоставление доступа на вход  ","ФИО 4"]
["2020-12-08T14:00:42","Турникет №1 ИПК","Предоставление доступа на вход  ","ФИО 4"]
["2020-12-08T14:04:37","Турникет №1 КПП 3","Предоставление доступа на вход  ","ФИО 4"]
["2020-12-08T14:04:44","Турникет №1 КПП 3","Предоставление доступа на вход  ","ФИО 4"]
["2020-12-09T08:20:05","Турникет №1 КПП 3","Предоставление доступа на вход  ","ФИО 4"]
["2020-12-09T08:20:19","Турникет №1 КПП 3","Предоставление доступа на вход  ","ФИО 4"]
["2020-12-09T08:20:28","Турникет №1 КПП 3","Предоставление доступа на вход  ","ФИО 4"]
["2020-12-09T08:20:39","Турникет №1 КПП 3","Предоставление доступа на вход  ","ФИО 4"]
["2020-12-09T08:22:07","Турникет №1 КПП 3","Предоставление доступа на вход  ","ФИО 4"]
["2020-12-09T08:22:15","Турникет №1 КПП 3","Предоставление доступа на вход  ","ФИО 4"]
["2020-12-09T08:24:01","Турникет №1 КПП 3","Предоставление доступа на вход  ","ФИО 4"]
["2020-12-09T08:30:00","Турникет №1 КПП 3","Предоставление доступа на вход  ","ФИО 4"]
["2020-12-09T08:47:57","Турникет №1 ИПК","Предоставление доступа на вход  ","ФИО 4"]
["2020-12-09T08:59:07","Турникет 1 КПП1","Предоставление доступа на вход  ","ФИО 4"]
["2020-12-09T09:26:53","Турникет №1 ИПК","Предоставление доступа на вход  ","ФИО 4"]
["2020-12-09T11:02:30","Турникет №1 КПП 3","Предоставление доступа на вход  ","ФИО 4"]
["2020-12-09T11:02:48","Турникет №1 КПП 3","Предоставление доступа на вход  ","ФИО 4"]
["2020-12-09T11:03:01","Турникет №1 КПП 3","Предоставление доступа на вход  ","ФИО 4"]
["2020-12-09T11:03:12","Турникет №1 КПП 3","Предоставление доступа на вход  ","ФИО 4"]
["2020-12-09T11:03:24","Турникет №1 КПП 3","Предоставление доступа на вход  ","ФИО 4"]
["2020-12-09T11:03:46","Турникет №1 КПП 3","Предоставление доступа на вход  ","ФИО 4"]
["2020-12-09T11:04:15","Турникет №1 КПП 3","Предоставление доступа на вход  ","ФИО 4"]
["2020-12-09T11:38:21","Турникет 1 КПП1","Предоставление доступа на вход  ","ФИО 4"]
["2020-12-09T11:38:31","Турникет 1 КПП1","Предоставление доступа на вход  ","ФИО 4"]
["2020-12-09T13:10:48","Турникет №1 КПП 3","Предоставление доступа на вход  ","ФИО 4"]
["2020-12-09T13:17:29","Турникет №1 КПП 3","Предоставление доступа на вход  ","ФИО 4"]
["2020-12-09T13:18:46","Турникет №1 КПП 3","Предоставление доступа на вход  ","ФИО 4"]
["2020-12-09T13:19:31","Турникет №1 КПП 3","Предоставление доступа на вход  ","ФИО 4"]
["2020-12-09T13:20:02","Турникет №1 КПП 3","Предоставление доступа на вход  ","ФИО 4"]
["2020-12-09T13:22:07","Турникет №1 КПП 3","Предоставление доступа на вход  ","ФИО 4"]
["2020-12-09T13:26:34","Турникет №1 КПП 3","Предоставление доступа на вход  ","ФИО 4"]
["2020-12-09T13:31:00","Турникет №1 КПП 3","Предоставление доступа на вход  ","ФИО 4"]
["2020-12-09T13:34:06","Турникет №1 КПП 3","Предоставление доступа на вход  ","ФИО 4"]
["2020-12-09T13:35:38","Турникет №1 КПП 3","Предоставление доступа на вход  ","ФИО 4"]
["2020-12-09T13:41:53","Турникет №1 КПП 3","Предоставление доступа на вход  ","ФИО 4"]
["2020-12-09T13:42:04","Турникет №1 КПП 3","Предоставление доступа на вход  ","ФИО 4"]
["2020-12-10T08:10:31","Турникет №1 КПП 3","Предоставление доступа на вход  ","ФИО 4"]
["2020-12-10T08:10:44","Турникет №1 КПП 3","Предоставление доступа на вход  ","ФИО 4"]
["2020-12-10T08:11:24","Турникет №1 КПП 3","Предоставление доступа на вход  ","ФИО 4"]
["2020-12-10T08:11:34","Турникет №1 КПП 3","Предоставление доступа на вход  ","ФИО 4"]
["2020-12-10T09:33:04","Турникет №1 ИПК","Предоставление доступа на вход  ","ФИО 4"]
["2020-12-10T10:02:38","Турникет 1 КПП1","Предоставление доступа на вход  ","ФИО 4"]
["2020-12-10T10:31:14","Турникет №1 КПП 3","Предоставление доступа на вход  ","ФИО 4"]
["2020-12-10T10:31:24","Турникет №1 КПП 3","Предоставление доступа на вход  ","ФИО 4"]
["2020-12-10T10:31:35","Турникет №1 КПП 3","Предоставление доступа на вход  ","ФИО 4"]
["2020-12-10T13:10:59","Турникет 1 КПП1","Предоставление доступа на вход  ","ФИО 4"]
["2020-12-10T13:15:52","Турникет №1 КПП 3","Предоставление доступа на вход  ","ФИО 4"]
["2020-12-10T13:16:07","Турникет №1 КПП 3","Предоставление доступа на вход  ","ФИО 4"]
["2020-12-10T13:16:19","Турникет №1 КПП 3","Предоставление доступа на вход  ","ФИО 4"]
["2020-12-10T13:46:21","Турникет №1 КПП 3","Предоставление доступа на вход  ","ФИО 4"]
["2020-12-10T16:03:00","Турникет №1 КПП 3","Предоставление доступа на вход  ","ФИО 5"]
["2020-12-11T08:27:36","Турникет №1 КПП 3","Предоставление доступа на вход  ","ФИО 5"]
["2020-12-11T08:27:48","Турникет №1 КПП 3","Предоставление доступа на вход  ","ФИО 5"]
["2020-12-11T08:28:00","Турникет №1 КПП 3","Предоставление доступа на вход  ","ФИО 5"]
["2020-12-11T08:28:11","Турникет №1 КПП 3","Предоставление доступа на вход  ","ФИО 5"]
["2020-12-11T08:33:49","Турникет №1 КПП 3","Предоставление доступа на вход  ","ФИО 5"]
["2020-12-11T08:46:19","Турникет №1 КПП 3","Предоставление доступа на вход  ","ФИО 5"]
["2020-12-11T08:46:37","Турникет №1 КПП 3","Предоставление доступа на вход  ","ФИО 5"]
["2020-12-11T08:46:49","Турникет №1 КПП 3","Предоставление доступа на вход  ","ФИО 5"]
["2020-12-11T08:47:02","Турникет №1 КПП 3","Предоставление доступа на вход  ","ФИО 5"]
["2020-12-11T09:36:30","Турникет №1 КПП 3","Предоставление доступа на вход  ","ФИО 5"]
["2020-12-11T09:36:57","Турникет №1 КПП 3","Предоставление доступа на вход  ","ФИО 5"]
["2020-12-11T09:40:54","Турникет 1 КПП1","Предоставление доступа на вход  ","ФИО 5"]
["2020-12-11T09:41:14","Турникет 1 КПП1","Предоставление доступа на вход  ","ФИО 5"]
["2020-12-11T09:48:40","Калитка БО","Предоставление доступа на вход  ","ФИО 5"]
["2020-12-11T09:48:43","Калитка БО","Предоставление доступа на вход  ","ФИО 5"]
["2020-12-11T09:48:45","Калитка БО","Предоставление доступа на вход  ","ФИО 5"]
["2020-12-11T09:48:46","Калитка БО","Предоставление доступа на вход  ","ФИО 5"]
["2020-12-11T09:48:51","Калитка БО","Предоставление доступа на вход  ","ФИО 5"]
["2020-12-11T09:48:59","Калитка БО","Предоставление доступа на вход  ","ФИО 5"]
["2020-12-11T10:33:16","Турникет ЗУ 2","Предоставление доступа на вход  ","ФИО 5"]
["2020-12-11T10:33:37","Турникет ЗУ 2","Предоставление доступа на вход  ","ФИО 5"]
["2020-12-11T10:33:44","Турникет №1 ИПК","Предоставление доступа на вход  ","ФИО 5"]
["2020-12-11T11:33:03","Турникет №1 ИПК","Предоставление доступа на вход  ","ФИО 5"]
["2020-12-11T11:33:07","Турникет №2 ИПК","Предоставление доступа на вход  ","ФИО 5"]
["2020-12-11T11:43:42","Калитка БО","Предоставление доступа на вход  ","ФИО 5"]
["2020-12-11T11:43:48","Калитка БО","Предоставление доступа на вход  ","ФИО 5"]
["2020-12-11T11:43:53","Калитка БО","Предоставление доступа на вход  ","ФИО 5"]
["2020-12-11T11:44:04","Калитка БО","Предоставление доступа на вход  ","ФИО 5"]
["2020-12-11T13:51:06","Турникет №1 КПП 3","Предоставление доступа на вход  ","ФИО 5"]
["2020-12-11T13:51:29","Турникет №1 КПП 3","Предоставление доступа на вход  ","ФИО 5"]
["2020-12-11T13:51:47","Турникет №1 КПП 3","Предоставление доступа на вход  ","ФИО 5"]
["2020-12-11T13:52:03","Турникет №1 КПП 3","Предоставление доступа на вход  ","ФИО 5"]
["2020-12-11T13:52:14","Турникет №1 КПП 3","Предоставление доступа на вход  ","ФИО 5"]
["2020-12-11T13:58:33","Турникет №1 КПП 3","Предоставление доступа на вход  ","ФИО 5"]
["2020-12-11T14:02:50","Турникет №1 ИПК","Предоставление доступа на вход  ","ФИО 5"]
["2020-12-11T14:32:08","Турникет 1 КПП1","Предоставление доступа на вход  ","ФИО 5"]
["2020-12-14T09:47:30","Турникет №1 КПП 3","Предоставление доступа на вход  ","ФИО 5"]
["2020-12-14T09:47:40","Турникет №1 КПП 3","Предоставление доступа на вход  ","ФИО 5"]
["2020-12-14T09:47:48","Турникет №1 КПП 3","Предоставление доступа на вход  ","ФИО 5"]
["2020-12-14T09:47:57","Турникет №1 КПП 3","Предоставление доступа на вход  ","ФИО 5"]
["2020-12-14T09:48:04","Турникет №1 КПП 3","Предоставление доступа на вход  ","ФИО 5"]
["2020-12-14T09:48:13","Турникет №1 КПП 3","Предоставление доступа на вход  ","ФИО 5"]
["2020-12-14T10:02:41","Турникет №1 КПП 3","Предоставление доступа на вход  ","ФИО 5"]
["2020-12-14T13:33:37","Турникет 1 КПП1","Предоставление доступа на вход  ","ФИО 5"]
["2020-12-14T13:36:05","Турникет №1 КПП 3","Предоставление доступа на вход  ","ФИО 5"]
["2020-12-14T13:36:11","Турникет №1 КПП 3","Предоставление доступа на вход  ","ФИО 5"]
["2020-12-14T13:36:24","Турникет №1 КПП 3","Предоставление доступа на вход  ","ФИО 5"]
["2020-12-14T13:45:51","Калитка БО","Предоставление доступа на вход  ","ФИО 5"]
["2020-12-14T13:45:52","Калитка БО","Предоставление доступа на вход  ","ФИО 5"]
["2020-12-14T13:46:09","Калитка БО","Предоставление доступа на вход  ","ФИО 5"]
["2020-12-14T13:46:14","Калитка БО","Предоставление доступа на вход  ","ФИО 5"]
["2020-12-14T13:46:17","Калитка БО","Предоставление доступа на вход  ","ФИО 5"]
["2020-12-14T13:56:32","Турникет №1 КПП 3","Предоставление доступа на вход  ","ФИО 5"]
["2020-12-14T13:56:46","Турникет №1 КПП 3","Предоставление доступа на вход  ","ФИО 5"]
["2020-12-14T13:56:56","Турникет №1 КПП 3","Предоставление доступа на вход  ","ФИО 5"]
["2020-12-14T14:13:41","Турникет 1 КПП1","Предоставление доступа на вход  ","ФИО 5"]
["2020-12-15T08:42:58","Турникет №1 КПП 3","Предоставление доступа на вход  ","ФИО 5"]
["2020-12-15T08:43:21","Турникет №1 КПП 3","Предоставление доступа на вход  ","ФИО 5"]
["2020-12-15T08:43:33","Турникет №1 КПП 3","Предоставление доступа на вход  ","ФИО 5"]
["2020-12-15T08:54:27","Турникет №1 КПП 3","Предоставление доступа на вход  ","ФИО 5"]
["2020-12-15T08:54:32","Турникет №2 КПП №3","Предоставление доступа на вход  ","ФИО 5"]
["2020-12-15T08:54:56","Турникет №1 КПП 3","Предоставление доступа на вход  ","ФИО 5"]
["2020-12-15T08:58:56","Турникет №1 КПП 3","Предоставление доступа на вход  ","ФИО 5"]
["2020-12-15T09:00:01","Калитка БО","Предоставление доступа на вход  ","ФИО 5"]
["2020-12-15T09:00:11","Калитка БО","Предоставление доступа на вход  ","ФИО 5"]
["2020-12-15T09:00:19","Калитка БО","Предоставление доступа на вход  ","ФИО 5"]
["2020-12-15T09:03:46","Калитка БО","Предоставление доступа на вход  ","ФИО 5"]
["2020-12-15T09:07:07","Турникет №1 КПП 3","Предоставление доступа на вход  ","ФИО 5"]
["2020-12-15T09:12:50","Турникет №1 ИПК","Предоставление доступа на вход  ","ФИО 5"]
["2020-12-15T09:12:53","Турникет №2 ИПК","Предоставление доступа на вход  ","ФИО 5"]
["2020-12-15T09:23:15","Турникет №2 ИПК","Предоставление доступа на вход  ","ФИО 5"]
["2020-12-15T09:24:00","Турникет №2 ИПК","Предоставление доступа на вход  ","ФИО 5"]
["2020-12-15T09:28:27","Турникет №1 ИПК","Предоставление доступа на вход  ","ФИО 5"]
["2020-12-15T09:32:34","Турникет №1 КПП 3","Предоставление доступа на вход  ","ФИО 5"]
["2020-12-15T09:39:26","Калитка БО","Предоставление доступа на вход  ","ФИО 5"]
["2020-12-15T09:39:27","Калитка БО","Предоставление доступа на вход  ","ФИО 5"]
["2020-12-15T09:39:33","Калитка БО","Предоставление доступа на вход  ","ФИО 5"]
["2020-12-15T10:02:11","Турникет №2 ИПК","Предоставление доступа на вход  ","ФИО 5"]
["2020-12-15T10:27:11","Калитка БО","Предоставление доступа на вход  ","ФИО 5"]
["2020-12-15T10:40:04","Турникет №1 КПП 3","Предоставление доступа на вход  ","ФИО 5"]
["2020-12-15T10:42:03","Калитка БО","Предоставление доступа на вход  ","ФИО 5"]
["2020-12-15T10:42:48","Калитка БО","Предоставление доступа на вход  ","ФИО 5"]
["2020-12-15T10:45:34","Калитка БО","Предоставление доступа на вход  ","ФИО 5"]
["2020-12-15T10:45:47","Калитка БО","Предоставление доступа на вход  ","ФИО 5"]
["2020-12-15T10:45:51","Калитка БО","Предоставление доступа на вход  ","ФИО 5"]
["2020-12-15T13:07:41","Турникет №1 КПП 3","Предоставление доступа на вход  ","ФИО 5"]
["2020-12-15T13:07:59","Турникет №1 КПП 3","Предоставление доступа на вход  ","ФИО 5"]
["2020-12-15T13:09:02","Турникет №1 КПП 3","Предоставление доступа на вход  ","ФИО 5"]
["2020-12-15T13:09:15","Турникет №1 КПП 3","Предоставление доступа на вход  ","ФИО 5"]
["2020-12-15T13:17:09","Турникет №1 КПП 3","Предоставление доступа на вход  ","ФИО 5"]
["2020-12-15T13:17:25","Турникет №1 КПП 3","Предоставление доступа на вход  ","ФИО 5"]
["2020-12-15T13:29:18","Турникет №1 КПП 3","Предоставление доступа на вход  ","ФИО 5"]
["2020-12-15T13:36:10","Турникет №1 ИПК","Предоставление доступа на вход  ","ФИО 5"]
["2020-12-15T13:56:12","Турникет 1 КПП1","Предоставление доступа на вход  ","ФИО 5"]
["2020-12-16T08:23:13","Турникет №1 КПП 3","Предоставление доступа на вход  ","ФИО 5"]
["2020-12-16T08:23:23","Турникет №1 КПП 3","Предоставление доступа на вход  ","ФИО 5"]
["2020-12-16T08:23:37","Турникет №1 КПП 3","Предоставление доступа на вход  ","ФИО 5"]
["2020-12-16T08:24:00","Турникет №1 КПП 3","Предоставление доступа на вход  ","ФИО 5"]
["2020-12-16T08:27:55","Турникет №1 КПП 3","Предоставление доступа на вход  ","ФИО 5"]
["2020-12-16T08:31:49","Турникет №1 КПП 3","Предоставление доступа на вход  ","ФИО 5"]
["2020-12-16T08:35:09","Калитка БО","Предоставление доступа на вход  ","ФИО 5"]
["2020-12-16T08:38:19","Калитка БО","Предоставление доступа на вход  ","ФИО 5"]
["2020-12-16T08:40:46","Турникет №1 КПП 3","Предоставление доступа на вход  ","ФИО 5"]
["2020-12-16T08:40:58","Турникет №1 КПП 3","Предоставление доступа на вход  ","ФИО 5"]
["2020-12-16T08:41:35","Турникет №1 КПП 3","Предоставление доступа на вход  ","ФИО 5"]
["2020-12-16T09:29:03","Турникет №1 КПП 3","Предоставление доступа на вход  ","ФИО 5"]
["2020-12-16T10:10:24","Калитка БО","Предоставление доступа на вход  ","ФИО 5"]
["2020-12-16T10:29:42","Калитка БО","Предоставление доступа на вход  ","ФИО 5"]
["2020-12-16T10:42:48","Турникет №1 ИПК","Предоставление доступа на вход  ","ФИО 5"]
["2020-12-16T10:42:49","Турникет №2 ИПК","Предоставление доступа на вход  ","ФИО 5"]
["2020-12-16T11:03:42","Калитка БО","Предоставление доступа на вход  ","ФИО 5"]
["2020-12-16T13:04:29","Турникет №1 КПП 3","Предоставление доступа на вход  ","ФИО 5"]
["2020-12-16T13:04:37","Турникет №1 КПП 3","Предоставление доступа на вход  ","ФИО 5"]
["2020-12-16T13:04:44","Турникет №1 КПП 3","Предоставление доступа на вход  ","ФИО 5"]
["2020-12-16T13:04:57","Турникет №1 КПП 3","Предоставление доступа на вход  ","ФИО 5"]
["2020-12-16T13:09:47","Турникет №1 КПП 3","Предоставление доступа на вход  ","ФИО 5"]
["2020-12-16T13:10:00","Турникет №1 КПП 3","Предоставление доступа на вход  ","ФИО 5"]
["2020-12-16T13:44:07","Турникет №1 КПП 3","Предоставление доступа на вход  ","ФИО 5"]
["2020-12-16T13:44:32","Турникет №1 КПП 3","Предоставление доступа на вход  ","ФИО 5"]
["2020-12-16T13:47:09","Калитка БО","Предоставление доступа на вход  ","ФИО 5"]
["2020-12-16T13:49:48","Калитка БО","Предоставление доступа на вход  ","ФИО 5"]
["2020-12-16T13:49:53","Калитка БО","Предоставление доступа на вход  ","ФИО 5"]
["2020-12-16T13:49:56","Калитка БО","Предоставление доступа на вход  ","ФИО 5"]
["2020-12-16T13:50:02","Калитка БО","Предоставление доступа на вход  ","ФИО 5"]
["2020-12-16T13:52:50","Турникет №1 КПП 3","Предоставление доступа на вход  ","ФИО 5"]
["2020-12-16T14:40:12","Турникет №1 КПП 3","Предоставление доступа на вход  ","ФИО 5"]
["2020-12-17T09:19:57","Турникет №1 КПП 3","Предоставление доступа на вход  ","ФИО 5"]
["2020-12-17T09:20:18","Турникет №1 КПП 3","Предоставление доступа на вход  ","ФИО 5"]
["2020-12-17T09:20:36","Турникет №1 КПП 3","Предоставление доступа на вход  ","ФИО 5"]
["2020-12-17T09:45:34","Турникет №1 ИПК","Предоставление доступа на вход  ","ФИО 5"]
["2020-12-17T09:45:50","Турникет №1 ИПК","Предоставление доступа на вход  ","ФИО 5"]
["2020-12-17T10:03:00","Турникет №1 КПП 3","Предоставление доступа на вход  ","ФИО 5"]
["2020-12-17T10:16:16","Калитка БО","Предоставление доступа на вход  ","ФИО 5"]
["2020-12-17T10:16:24","Калитка БО","Предоставление доступа на вход  ","ФИО 5"]
["2020-12-17T10:45:25","Турникет №1 КПП 3","Предоставление доступа на вход  ","ФИО 5"]
["2020-12-17T13:10:08","Турникет №1 КПП 3","Предоставление доступа на вход  ","ФИО 5"]
["2020-12-17T13:10:22","Турникет №1 КПП 3","Предоставление доступа на вход  ","ФИО 5"]
["2020-12-17T13:10:33","Турникет №1 КПП 3","Предоставление доступа на вход  ","ФИО 5"]
["2020-12-17T13:11:04","Турникет №1 КПП 3","Предоставление доступа на вход  ","ФИО 5"]
["2020-12-17T13:19:40","Турникет №1 КПП 3","Предоставление доступа на вход  ","ФИО 5"]
["2020-12-17T13:19:54","Турникет №1 КПП 3","Предоставление доступа на вход  ","ФИО 5"]
["2020-12-17T13:59:51","Турникет №1 КПП 3","Предоставление доступа на вход  ","ФИО 5"]
["2020-12-17T15:08:05","Турникет №1 ИПК","Предоставление доступа на вход  ","ФИО 5"]
["2020-12-17T15:16:05","Калитка БО","Предоставление доступа на вход  ","ФИО 5"]
["2020-12-17T15:37:05","Турникет №1 КПП 3","Предоставление доступа на вход  ","ФИО 5"]
["2020-12-17T15:37:17","Турникет №1 КПП 3","Предоставление доступа на вход  ","ФИО 5"]
["2020-12-17T15:40:49","Калитка БО","Предоставление доступа на вход  ","ФИО 5"]
["2020-12-17T15:40:54","Калитка БО","Предоставление доступа на вход  ","ФИО 5"]
["2020-12-17T15:41:02","Калитка БО","Предоставление доступа на вход  ","ФИО 5"]
["2020-12-18T08:23:28","Турникет №1 КПП 3","Предоставление доступа на вход  ","ФИО 5"]
["2020-12-18T08:23:36","Турникет №1 КПП 3","Предоставление доступа на вход  ","ФИО 5"]
["2020-12-18T08:23:44","Турникет №1 КПП 3","Предоставление доступа на вход  ","ФИО 5"]
["2020-12-18T08:23:52","Турникет №1 КПП 3","Предоставление доступа на вход  ","ФИО 5"]
["2020-12-18T08:24:04","Турникет №1 КПП 3","Предоставление доступа на вход  ","ФИО 5"]
["2020-12-18T08:24:13","Турникет №1 КПП 3","Предоставление доступа на вход  ","ФИО 5"]
["2020-12-18T08:25:58","Турникет №1 КПП 3","Предоставление доступа на вход  ","ФИО 5"]
["2020-12-18T08:46:15","Турникет №1 ИПК","Предоставление доступа на вход  ","ФИО 5"]
["2020-12-18T09:09:18","Турникет №1 КПП 3","Предоставление доступа на вход  ","ФИО 5"]
["2020-12-18T09:09:33","Турникет №1 КПП 3","Предоставление доступа на вход  ","ФИО 5"]
["2020-12-18T09:15:54","Турникет №1 ИПК","Предоставление доступа на вход  ","ФИО 5"]
["2020-12-18T09:27:08","Калитка БО","Предоставление доступа на вход  ","ФИО 5"]
["2020-12-18T10:04:14","Турникет №1 КПП 3","Предоставление доступа на вход  ","ФИО 5"]
["2020-12-18T10:37:56","Турникет №2 ИПК","Предоставление доступа на вход  ","ФИО 5"]
["2020-12-18T13:36:28","Турникет №1 КПП 3","Предоставление доступа на вход  ","ФИО 5"]
["2020-12-18T13:36:34","Турникет №1 КПП 3","Предоставление доступа на вход  ","ФИО 5"]
["2020-12-18T13:36:38","Турникет №1 КПП 3","Предоставление доступа на вход  ","ФИО 5"]
["2020-12-18T13:36:45","Турникет №1 КПП 3","Предоставление доступа на вход  ","ФИО 5"]
["2020-12-18T13:41:04","Турникет 1 КПП1","Предоставление доступа на вход  ","ФИО 5"]
["2020-12-18T14:09:13","Турникет 1 КПП1","Предоставление доступа на вход  ","ФИО 5"]
["2020-12-18T14:47:40","Турникет №1 ИПК","Предоставление доступа на вход  ","ФИО 5"]
["2020-12-18T14:47:46","Турникет №1 ИПК","Предоставление доступа на вход  ","ФИО 5"]
["2020-12-21T09:30:39","Турникет №1 КПП 3","Предоставление доступа на вход  ","ФИО 5"]
["2020-12-21T09:31:07","Турникет №1 КПП 3","Предоставление доступа на вход  ","ФИО 5"]
["2020-12-21T09:31:27","Турникет №1 КПП 3","Предоставление доступа на вход  ","ФИО 5"]
["2020-12-21T09:31:43","Турникет №1 КПП 3","Предоставление доступа на вход  ","ФИО 5"]
["2020-12-21T09:45:23","Турникет №1 КПП 3","Предоставление доступа на вход  ","ФИО 5"]
["2020-12-21T09:45:36","Турникет №1 КПП 3","Предоставление доступа на вход  ","ФИО 5"]
["2020-12-21T10:19:33","Турникет №2 ИПК","Предоставление доступа на вход  ","ФИО 5"]
["2020-12-21T10:19:43","Турникет №2 ИПК","Предоставление доступа на вход  ","ФИО 5"]
["2020-12-21T10:50:47","Турникет 1 КПП1","Предоставление доступа на вход  ","ФИО 5"]
["2020-12-21T11:17:24","Калитка БО","Предоставление доступа на вход  ","ФИО 5"]
["2020-12-21T11:17:26","Калитка БО","Предоставление доступа на вход  ","ФИО 5"]
["2020-12-21T11:17:30","Калитка БО","Предоставление доступа на вход  ","ФИО 5"]
["2020-12-21T11:17:35","Калитка БО","Предоставление доступа на вход  ","ФИО 5"]
["2020-12-21T11:17:42","Калитка БО","Предоставление доступа на вход  ","ФИО 5"]
["2020-12-21T11:17:46","Калитка БО","Предоставление доступа на вход  ","ФИО 5"]
["2020-12-21T11:17:50","Калитка БО","Предоставление доступа на вход  ","ФИО 5"]
["2020-12-21T13:13:03","Турникет №1 КПП 3","Предоставление доступа на вход  ","ФИО 5"]
["2020-12-21T13:13:13","Турникет №1 КПП 3","Предоставление доступа на вход  ","ФИО 5"]
["2020-12-21T13:13:41","Турникет №1 КПП 3","Предоставление доступа на вход  ","ФИО 5"]
["2020-12-21T13:13:55","Турникет №1 КПП 3","Предоставление доступа на вход  ","ФИО 5"]
["2020-12-21T13:24:49","Турникет №1 КПП 3","Предоставление доступа на вход  ","ФИО 5"]
["2020-12-21T13:25:00","Турникет №1 КПП 3","Предоставление доступа на вход  ","ФИО 5"]
["2020-12-21T13:25:12","Турникет №1 КПП 3","Предоставление доступа на вход  ","ФИО 5"]
["2020-12-21T13:25:21","Турникет №1 КПП 3","Предоставление доступа на вход  ","ФИО 5"]
["2020-12-21T13:30:39","Калитка БО","Предоставление доступа на вход  ","ФИО 5"]
["2020-12-21T13:52:57","Калитка БО","Предоставление доступа на вход  ","ФИО 5"]
["2020-12-21T13:53:06","Калитка БО","Предоставление доступа на вход  ","ФИО 5"]
["2020-12-21T14:04:22","Калитка БО","Предоставление доступа на вход  ","ФИО 5"]
["2020-12-21T14:13:20","Турникет 1 КПП1","Предоставление доступа на вход  ","ФИО 5"]
["2020-12-21T14:23:01","Турникет №1 КПП 3","Предоставление доступа на вход  ","ФИО 5"]
["2020-12-21T14:23:14","Турникет №1 КПП 3","Предоставление доступа на вход  ","ФИО 5"]
["2020-12-22T08:19:35","Турникет №1 КПП 3","Предоставление доступа на вход  ","ФИО 5"]
["2020-12-22T08:19:51","Турникет №1 КПП 3","Предоставление доступа на вход  ","ФИО 5"]
["2020-12-22T08:22:38","Турникет №1 КПП 3","Предоставление доступа на вход  ","ФИО 5"]
["2020-12-22T08:23:00","Турникет №1 КПП 3","Предоставление доступа на вход  ","ФИО 5"]
["2020-12-22T08:23:21","Турникет №1 КПП 3","Предоставление доступа на вход  ","ФИО 5"]
["2020-12-22T09:01:18","Турникет №1 КПП 3","Предоставление доступа на вход  ","ФИО 5"]
["2020-12-22T09:10:05","Калитка БО","Предоставление доступа на вход  ","ФИО 5"]
["2020-12-22T09:45:35","Турникет №1 КПП 3","Предоставление доступа на вход  ","ФИО 5"]
["2020-12-22T09:55:47","Турникет №1 ИПК","Предоставление доступа на вход  ","ФИО 5"]
["2020-12-22T10:07:40","Калитка БО","Предоставление доступа на вход  ","ФИО 5"]
["2020-12-22T10:07:43","Калитка БО","Предоставление доступа на вход  ","ФИО 5"]
["2020-12-22T10:31:25","Турникет №1 КПП 3","Предоставление доступа на вход  ","ФИО 5"]
["2020-12-22T10:31:41","Турникет №1 КПП 3","Предоставление доступа на вход  ","ФИО 5"]
["2020-12-22T10:35:30","Турникет 1 КПП1","Предоставление доступа на вход  ","ФИО 5"]
["2020-12-22T13:03:25","Турникет №1 КПП 3","Предоставление доступа на вход  ","ФИО 5"]
["2020-12-22T13:03:49","Турникет №1 КПП 3","Предоставление доступа на вход  ","ФИО 5"]
["2020-12-22T13:09:24","Турникет №1 КПП 3","Предоставление доступа на вход  ","ФИО 5"]
["2020-12-22T13:21:19","Турникет №1 КПП 3","Предоставление доступа на вход  ","ФИО 5"]
["2020-12-22T14:11:13","Турникет №1 КПП 3","Предоставление доступа на вход  ","ФИО 5"]
["2020-12-22T14:22:28","Калитка БО","Предоставление доступа на вход  ","ФИО 5"]
["2020-12-22T14:38:20","Турникет №1 КПП 3","Предоставление доступа на вход  ","ФИО 5"]
["2020-12-22T14:47:06","Калитка БО","Предоставление доступа на вход  ","ФИО 5"]
["2020-12-22T14:47:28","Калитка БО","Предоставление доступа на вход  ","ФИО 5"]
["2020-12-23T08:26:32","Турникет №1 КПП 3","Предоставление доступа на вход  ","ФИО 5"]
["2020-12-23T08:26:44","Турникет №1 КПП 3","Предоставление доступа на вход  ","ФИО 5"]
["2020-12-23T08:26:55","Турникет №1 КПП 3","Предоставление доступа на вход  ","ФИО 5"]
["2020-12-23T09:02:11","Турникет №1 КПП 3","Предоставление доступа на вход  ","ФИО 5"]
["2020-12-23T09:33:27","Турникет №1 КПП 3","Предоставление доступа на вход  ","ФИО 5"]
["2020-12-23T10:04:31","Турникет №1 КПП 3","Предоставление доступа на вход  ","ФИО 5"]
["2020-12-23T10:41:00","Турникет 1 КПП1","Предоставление доступа на вход  ","ФИО 5"]
["2020-12-23T10:43:39","Турникет 1 КПП1","Предоставление доступа на вход  ","ФИО 5"]
["2020-12-23T11:04:51","Турникет №1 КПП 3","Предоставление доступа на вход  ","ФИО 5"]
["2020-12-23T11:11:48","Турникет №1 КПП 3","Предоставление доступа на вход  ","ФИО 5"]
["2020-12-23T11:12:04","Турникет №1 КПП 3","Предоставление доступа на вход  ","ФИО 5"]
["2020-12-23T11:19:02","Калитка БО","Предоставление доступа на вход  ","ФИО 5"]
["2020-12-23T13:13:31","Турникет №1 КПП 3","Предоставление доступа на вход  ","ФИО 5"]
["2020-12-23T13:13:46","Турникет №1 КПП 3","Предоставление доступа на вход  ","ФИО 5"]
["2020-12-23T13:19:38","Турникет №1 КПП 3","Предоставление доступа на вход  ","ФИО 5"]
["2020-12-23T13:46:10","Турникет №1 КПП 3","Предоставление доступа на вход  ","ФИО 5"]
["2020-12-23T13:49:39","Турникет №1 КПП 3","Предоставление доступа на вход  ","ФИО 5"]
["2020-12-23T14:57:44","Турникет №1 КПП 3","Предоставление доступа на вход  ","ФИО 5"]
["2020-12-23T14:58:03","Турникет №1 КПП 3","Предоставление доступа на вход  ","ФИО 5"]
["2020-12-23T15:39:31","Калитка БО","Предоставление доступа на вход  ","ФИО 5"]
["2020-12-23T15:39:35","Калитка БО","Предоставление доступа на вход  ","ФИО 5"]
["2020-12-24T08:22:25","Турникет №1 КПП 3","Предоставление доступа на вход  ","ФИО 5"]
["2020-12-24T08:22:32","Турникет №1 КПП 3","Предоставление доступа на вход  ","ФИО 5"]
["2020-12-24T08:22:48","Турникет №1 КПП 3","Предоставление доступа на вход  ","ФИО 5"]
["2020-12-24T08:28:04","Турникет №1 КПП 3","Предоставление доступа на вход  ","ФИО 5"]
["2020-12-24T08:33:06","Турникет №1 КПП 3","Предоставление доступа на вход  ","ФИО 5"]
["2020-12-24T08:33:32","Турникет №1 КПП 3","Предоставление доступа на вход  ","ФИО 5"]
["2020-12-24T08:38:01","Турникет №1 КПП 3","Предоставление доступа на вход  ","ФИО 5"]
["2020-12-24T09:48:59","Турникет №1 ИПК","Предоставление доступа на вход  ","ФИО 5"]
["2020-12-24T10:22:04","Турникет №1 КПП 3","Предоставление доступа на вход  ","ФИО 5"]
["2020-12-24T10:47:17","Турникет №1 КПП 3","Предоставление доступа на вход  ","ФИО 5"]
["2020-12-24T11:06:13","Турникет №1 КПП 3","Предоставление доступа на вход  ","ФИО 5"]
["2020-12-24T11:06:21","Турникет №1 КПП 3","Предоставление доступа на вход  ","ФИО 5"]
["2020-12-24T11:47:18","Турникет №1 ИПК","Предоставление доступа на вход  ","ФИО 5"]
["2020-12-24T13:30:06","Турникет №1 КПП 3","Предоставление доступа на вход  ","ФИО 5"]
["2020-12-24T13:30:18","Турникет №1 КПП 3","Предоставление доступа на вход  ","ФИО 5"]
["2020-12-24T13:30:35","Турникет №1 КПП 3","Предоставление доступа на вход  ","ФИО 5"]
["2020-12-24T13:30:49","Турникет №1 КПП 3","Предоставление доступа на вход  ","ФИО 5"]
["2020-12-24T13:30:58","Турникет №1 КПП 3","Предоставление доступа на вход  ","ФИО 5"]
["2020-12-24T13:31:22","Турникет №1 КПП 3","Предоставление доступа на вход  ","ФИО 5"]
["2020-12-24T14:02:45","Турникет №1 КПП 3","Предоставление доступа на вход  ","ФИО 5"]
["2020-12-24T14:14:02","Калитка БО","Предоставление доступа на вход  ","ФИО 5"]
["2020-12-24T15:46:23","Турникет №1 ИПК","Предоставление доступа на вход  ","ФИО 5"]
["2020-12-25T08:33:58","Турникет №1 КПП 3","Предоставление доступа на вход  ","ФИО 5"]
["2020-12-25T08:37:45","Турникет №1 КПП 3","Предоставление доступа на вход  ","ФИО 5"]
["2020-12-25T08:37:51","Турникет №1 КПП 3","Предоставление доступа на вход  ","ФИО 5"]
["2020-12-25T08:37:57","Турникет №1 КПП 3","Предоставление доступа на вход  ","ФИО 5"]
["2020-12-25T08:38:05","Турникет №1 КПП 3","Предоставление доступа на вход  ","ФИО 5"]
["2020-12-25T08:38:15","Турникет №1 КПП 3","Предоставление доступа на вход  ","ФИО 5"]
["2020-12-25T08:55:00","Турникет №1 КПП 3","Предоставление доступа на вход  ","ФИО 5"]
["2020-12-25T08:55:33","Турникет №1 КПП 3","Предоставление доступа на вход  ","ФИО 5"]
["2020-12-25T09:16:56","Турникет №1 ИПК","Предоставление доступа на вход  ","ФИО 5"]
["2020-12-25T09:23:39","Турникет №1 КПП 3","Предоставление доступа на вход  ","ФИО 5"]
["2020-12-25T10:36:13","Турникет 1 КПП1","Предоставление доступа на вход  ","ФИО 5"]
["2020-12-25T11:21:35","Турникет №1 КПП 3","Предоставление доступа на вход  ","ФИО 5"]
["2020-12-25T12:04:00","Турникет №1 ИПК","Предоставление доступа на вход  ","ФИО 5"]
["2020-12-25T13:10:07","Турникет №1 КПП 3","Предоставление доступа на вход  ","ФИО 5"]
["2020-12-25T13:10:15","Турникет №1 КПП 3","Предоставление доступа на вход  ","ФИО 5"]
["2020-12-25T13:10:24","Турникет №1 КПП 3","Предоставление доступа на вход  ","ФИО 5"]
["2020-12-25T13:10:47","Турникет №1 КПП 3","Предоставление доступа на вход  ","ФИО 5"]
["2020-12-25T13:15:31","Турникет №1 КПП 3","Предоставление доступа на вход  ","ФИО 5"]
["2020-12-25T13:16:07","Турникет №1 КПП 3","Предоставление доступа на вход  ","ФИО 5"]
["2020-12-25T13:16:53","Турникет №1 КПП 3","Предоставление доступа на вход  ","ФИО 5"]
["2020-12-25T14:03:05","Турникет №1 КПП 3","Предоставление доступа на вход  ","ФИО 5"]
["2020-12-25T14:04:05","Турникет №1 КПП 3","Предоставление доступа на вход  ","ФИО 5"]
["2020-12-25T14:06:43","Турникет №1 КПП 3","Предоставление доступа на вход  ","ФИО 5"]
["2020-12-25T14:09:53","Турникет №1 КПП 3","Предоставление доступа на вход  ","ФИО 5"]
["2020-12-25T14:29:32","Турникет №1 КПП 3","Предоставление доступа на вход  ","ФИО 5"]
["2020-12-25T14:49:36","Турникет 1 КПП1","Предоставление доступа на вход  ","ФИО 5"]
["2020-12-25T14:49:50","Турникет 1 КПП1","Предоставление доступа на вход  ","ФИО 5"]
["2020-12-25T14:51:30","Турникет №1 КПП 3","Предоставление доступа на вход  ","ФИО 5"]
["2020-12-25T14:56:19","Калитка БО","Предоставление доступа на вход  ","ФИО 5"]
["2020-12-25T15:24:05","Турникет 1 КПП1","Предоставление доступа на вход  ","ФИО 5"]
["2020-12-28T08:42:56","Турникет №1 КПП 3","Предоставление доступа на вход  ","ФИО 5"]
["2020-12-28T08:42:59","Турникет №1 КПП 3","Предоставление доступа на вход  ","ФИО 5"]
["2020-12-28T08:43:14","Турникет №1 КПП 3","Предоставление доступа на вход  ","ФИО 5"]
["2020-12-28T08:43:21","Турникет №1 КПП 3","Предоставление доступа на вход  ","ФИО 5"]
["2020-12-28T08:43:57","Турникет №1 КПП 3","Предоставление доступа на вход  ","ФИО 5"]
["2020-12-28T08:54:30","Турникет №1 КПП 3","Предоставление доступа на вход  ","ФИО 5"]
["2020-12-28T09:29:58","Турникет №1 КПП 3","Предоставление доступа на вход  ","ФИО 5"]
["2020-12-28T09:52:27","Турникет №1 КПП 3","Предоставление доступа на вход  ","ФИО 5"]
["2020-12-28T10:23:08","Турникет №1 КПП 3","Предоставление доступа на вход  ","ФИО 5"]
["2020-12-28T10:35:08","Турникет 1 КПП1","Предоставление доступа на вход  ","ФИО 5"]
["2020-12-28T13:09:02","Турникет №1 КПП 3","Предоставление доступа на вход  ","ФИО 5"]
["2020-12-28T13:10:10","Турникет №1 КПП 3","Предоставление доступа на вход  ","ФИО 5"]
["2020-12-28T13:10:20","Турникет №1 КПП 3","Предоставление доступа на вход  ","ФИО 5"]
["2020-12-28T13:14:24","Турникет №1 КПП 3","Предоставление доступа на вход  ","ФИО 5"]
["2020-12-28T13:41:41","Турникет №1 КПП 3","Предоставление доступа на вход  ","ФИО 5"]
["2020-12-28T13:46:38","Турникет №1 КПП 3","Предоставление доступа на вход  ","ФИО 5"]
["2020-12-28T13:51:53","Турникет №1 КПП 3","Предоставление доступа на вход  ","ФИО 5"]
["2020-12-28T13:52:03","Турникет №1 КПП 3","Предоставление доступа на вход  ","ФИО 5"]
["2020-12-28T15:07:32","Турникет №1 КПП 3","Предоставление доступа на вход  ","ФИО 5"]
["2020-12-29T08:21:49","Турникет №1 КПП 3","Предоставление доступа на вход  ","ФИО 5"]
["2020-12-29T08:22:02","Турникет №1 КПП 3","Предоставление доступа на вход  ","ФИО 5"]
["2020-12-29T08:23:30","Турникет №1 КПП 3","Предоставление доступа на вход  ","ФИО 5"]
["2020-12-29T08:23:49","Турникет №1 КПП 3","Предоставление доступа на вход  ","ФИО 5"]
["2020-12-29T08:24:05","Турникет №1 КПП 3","Предоставление доступа на вход  ","ФИО 5"]
["2020-12-29T08:24:20","Турникет №1 КПП 3","Предоставление доступа на вход  ","ФИО 5"]
["2020-12-29T08:26:02","Турникет №1 КПП 3","Предоставление доступа на вход  ","ФИО 5"]
["2020-12-29T08:26:05","Турникет №1 КПП 3","Предоставление доступа на вход  ","ФИО 5"]
["2020-12-29T09:10:52","Турникет №1 КПП 3","Предоставление доступа на вход  ","ФИО 5"]
["2020-12-29T09:41:44","Турникет 1 КПП1","Предоставление доступа на вход  ","ФИО 5"]
["2020-12-29T09:45:41","Турникет №1 КПП 3","Предоставление доступа на вход  ","ФИО 5"]
["2020-12-29T10:20:30","Турникет №1 КПП 3","Предоставление доступа на вход  ","ФИО 5"]
["2020-12-29T11:13:25","Турникет 1 КПП1","Предоставление доступа на вход  ","ФИО 5"]
["2020-12-29T11:15:46","Турникет ЗУ 2","Предоставление доступа на вход  ","ФИО 5"]
["2020-12-29T11:26:20","Турникет №1 ИПК","Предоставление доступа на вход  ","ФИО 5"]
["2020-12-29T13:27:17","Турникет №1 КПП 3","Предоставление доступа на вход  ","ФИО 5"]
["2020-12-29T13:29:43","Турникет №1 КПП 3","Предоставление доступа на вход  ","ФИО 5"]
["2020-12-29T13:29:54","Турникет №1 КПП 3","Предоставление доступа на вход  ","ФИО 5"]
["2020-12-29T13:30:30","Турникет №1 КПП 3","Предоставление доступа на вход  ","ФИО 5"]
["2020-12-29T13:31:55","Турникет №1 КПП 3","Предоставление доступа на вход  ","ФИО 5"]
["2020-12-29T13:32:08","Турникет №1 КПП 3","Предоставление доступа на вход  ","ФИО 5"]
["2020-12-29T14:35:12","Турникет №1 КПП 3","Предоставление доступа на вход  ","ФИО 5"]
["2020-12-30T08:48:34","Турникет №1 КПП 3","Предоставление доступа на вход  ","ФИО 5"]
["2020-12-30T08:48:48","Турникет №1 КПП 3","Предоставление доступа на вход  ","ФИО 5"]
["2020-12-30T08:48:57","Турникет №1 КПП 3","Предоставление доступа на вход  ","ФИО 5"]

{"sheet":"Отчет","index":1,"n_rows":50,"n_cols":4,"rows_kept":50,"cut":false,"hidden":false,"merged":[]}
[]
[null,"2020-09-01"]
[null,"2020-10-01"]
[]
["№\nп.п.","Фамилия Имя Отчество","Количество\nпроходов","Даты\nпроходов"]
[{"$f":"IF(B6=\"-\",\"-\",MAX(A$5:A5)+1)","v":1},{"$f":"IFERROR(INDEX(Выгрузки!$D$6:$D$10000,MATCH(0,IF(((Выгрузки!$A$6:$A$10000>=$B$2)+(Выгрузки!$A$6:$A$10000<$B$3)+0)=2,COUNTIF(B$5:B5,Выгрузки!$D$6:$D$10000),\"\"),0)),\"-\")","v":"ФИО 1"},{"$f":"IF(B6=\"-\",\"-\",COUNTIFS(Выгрузки!$D:$D,$B6,Выгрузки!$A:$A,\">=\"&$B$2,Выгрузки!A:A,\"<=\"&$B$3))","v":13},{"$f":"MergeIfs(Турникет[Дата, время события],Турникет[ФИО],B6,$B$2,$B$3)","v":"23.09.2020 13:41:55, 23.09.2020 14:09:02, 23.09.2020 14:09:44, 28.09.2020 11:40:06, 28.09.2020 11:40:16, 28.09.2020 11:40:29, 28.09.2020 11:40:44, 28.09.2020 13:25:25, 28.09.2020 13:25:32, 28.09.2020 13:25:42, 29.09.2020 9:32:40, 29.09.2020 9:32:57, 29.09.2020 9:33:13"}]
[{"$f":"IF(B7=\"-\",\"-\",MAX(A$5:A6)+1)","v":2},{"$f":"IFERROR(INDEX(Выгрузки!$D$6:$D$10000,MATCH(0,IF(((Выгрузки!$A$6:$A$10000>=$B$2)+(Выгрузки!$A$6:$A$10000<$B$3)+0)=2,COUNTIF(B$5:B6,Выгрузки!$D$6:$D$10000),\"\"),0)),\"-\")","v":"ФИО 2"},{"$f":"IF(B7=\"-\",\"-\",COUNTIFS(Выгрузки!$D:$D,$B7,Выгрузки!$A:$A,\">=\"&$B$2,Выгрузки!A:A,\"<=\"&$B$3))","v":5},{"$f":"MergeIfs(Турникет[Дата, время события],Турникет[ФИО],B7,$B$2,$B$3)","v":"29.09.2020 9:33:33, 29.09.2020 10:33:38, 29.09.2020 10:33:53, 29.09.2020 10:34:06, 29.09.2020 10:50:45"}]
[{"$f":"IF(B8=\"-\",\"-\",MAX(A$5:A7)+1)","v":"-"},{"$f":"IFERROR(INDEX(Выгрузки!$D$6:$D$10000,MATCH(0,IF(((Выгрузки!$A$6:$A$10000>=$B$2)+(Выгрузки!$A$6:$A$10000<$B$3)+0)=2,COUNTIF(B$5:B7,Выгрузки!$D$6:$D$10000),\"\"),0)),\"-\")","v":"-"},{"$f":"IF(B8=\"-\",\"-\",COUNTIFS(Выгрузки!$D:$D,$B8,Выгрузки!$A:$A,\">=\"&$B$2,Выгрузки!A:A,\"<=\"&$B$3))","v":"-"}]
[{"$f":"IF(B9=\"-\",\"-\",MAX(A$5:A8)+1)","v":"-"},{"$f":"IFERROR(INDEX(Выгрузки!$D$6:$D$10000,MATCH(0,IF(((Выгрузки!$A$6:$A$10000>=$B$2)+(Выгрузки!$A$6:$A$10000<$B$3)+0)=2,COUNTIF(B$5:B8,Выгрузки!$D$6:$D$10000),\"\"),0)),\"-\")","v":"-"},{"$f":"IF(B9=\"-\",\"-\",COUNTIFS(Выгрузки!$D:$D,$B9,Выгрузки!$A:$A,\">=\"&$B$2,Выгрузки!A:A,\"<=\"&$B$3))","v":"-"}]
[{"$f":"IF(B10=\"-\",\"-\",MAX(A$5:A9)+1)","v":"-"},{"$f":"IFERROR(INDEX(Выгрузки!$D$6:$D$10000,MATCH(0,IF(((Выгрузки!$A$6:$A$10000>=$B$2)+(Выгрузки!$A$6:$A$10000<$B$3)+0)=2,COUNTIF(B$5:B9,Выгрузки!$D$6:$D$10000),\"\"),0)),\"-\")","v":"-"},{"$f":"IF(B10=\"-\",\"-\",COUNTIFS(Выгрузки!$D:$D,$B10,Выгрузки!$A:$A,\">=\"&$B$2,Выгрузки!A:A,\"<=\"&$B$3))","v":"-"}]
[{"$f":"IF(B11=\"-\",\"-\",MAX(A$5:A10)+1)","v":"-"},{"$f":"IFERROR(INDEX(Выгрузки!$D$6:$D$10000,MATCH(0,IF(((Выгрузки!$A$6:$A$10000>=$B$2)+(Выгрузки!$A$6:$A$10000<$B$3)+0)=2,COUNTIF(B$5:B10,Выгрузки!$D$6:$D$10000),\"\"),0)),\"-\")","v":"-"},{"$f":"IF(B11=\"-\",\"-\",COUNTIFS(Выгрузки!$D:$D,$B11,Выгрузки!$A:$A,\">=\"&$B$2,Выгрузки!A:A,\"<=\"&$B$3))","v":"-"}]
[{"$f":"IF(B12=\"-\",\"-\",MAX(A$5:A11)+1)","v":"-"},{"$f":"IFERROR(INDEX(Выгрузки!$D$6:$D$10000,MATCH(0,IF(((Выгрузки!$A$6:$A$10000>=$B$2)+(Выгрузки!$A$6:$A$10000<$B$3)+0)=2,COUNTIF(B$5:B11,Выгрузки!$D$6:$D$10000),\"\"),0)),\"-\")","v":"-"},{"$f":"IF(B12=\"-\",\"-\",COUNTIFS(Выгрузки!$D:$D,$B12,Выгрузки!$A:$A,\">=\"&$B$2,Выгрузки!A:A,\"<=\"&$B$3))","v":"-"}]
[{"$f":"IF(B13=\"-\",\"-\",MAX(A$5:A12)+1)","v":"-"},{"$f":"IFERROR(INDEX(Выгрузки!$D$6:$D$10000,MATCH(0,IF(((Выгрузки!$A$6:$A$10000>=$B$2)+(Выгрузки!$A$6:$A$10000<$B$3)+0)=2,COUNTIF(B$5:B12,Выгрузки!$D$6:$D$10000),\"\"),0)),\"-\")","v":"-"},{"$f":"IF(B13=\"-\",\"-\",COUNTIFS(Выгрузки!$D:$D,$B13,Выгрузки!$A:$A,\">=\"&$B$2,Выгрузки!A:A,\"<=\"&$B$3))","v":"-"}]
[{"$f":"IF(B14=\"-\",\"-\",MAX(A$5:A13)+1)","v":"-"},{"$f":"IFERROR(INDEX(Выгрузки!$D$6:$D$10000,MATCH(0,IF(((Выгрузки!$A$6:$A$10000>=$B$2)+(Выгрузки!$A$6:$A$10000<$B$3)+0)=2,COUNTIF(B$5:B13,Выгрузки!$D$6:$D$10000),\"\"),0)),\"-\")","v":"-"},{"$f":"IF(B14=\"-\",\"-\",COUNTIFS(Выгрузки!$D:$D,$B14,Выгрузки!$A:$A,\">=\"&$B$2,Выгрузки!A:A,\"<=\"&$B$3))","v":"-"}]
[{"$f":"IF(B15=\"-\",\"-\",MAX(A$5:A14)+1)","v":"-"},{"$f":"IFERROR(INDEX(Выгрузки!$D$6:$D$10000,MATCH(0,IF(((Выгрузки!$A$6:$A$10000>=$B$2)+(Выгрузки!$A$6:$A$10000<$B$3)+0)=2,COUNTIF(B$5:B14,Выгрузки!$D$6:$D$10000),\"\"),0)),\"-\")","v":"-"},{"$f":"IF(B15=\"-\",\"-\",COUNTIFS(Выгрузки!$D:$D,$B15,Выгрузки!$A:$A,\">=\"&$B$2,Выгрузки!A:A,\"<=\"&$B$3))","v":"-"}]
[{"$f":"IF(B16=\"-\",\"-\",MAX(A$5:A15)+1)","v":"-"},{"$f":"IFERROR(INDEX(Выгрузки!$D$6:$D$10000,MATCH(0,IF(((Выгрузки!$A$6:$A$10000>=$B$2)+(Выгрузки!$A$6:$A$10000<$B$3)+0)=2,COUNTIF(B$5:B15,Выгрузки!$D$6:$D$10000),\"\"),0)),\"-\")","v":"-"},{"$f":"IF(B16=\"-\",\"-\",COUNTIFS(Выгрузки!$D:$D,$B16,Выгрузки!$A:$A,\">=\"&$B$2,Выгрузки!A:A,\"<=\"&$B$3))","v":"-"}]
[{"$f":"IF(B17=\"-\",\"-\",MAX(A$5:A16)+1)","v":"-"},{"$f":"IFERROR(INDEX(Выгрузки!$D$6:$D$10000,MATCH(0,IF(((Выгрузки!$A$6:$A$10000>=$B$2)+(Выгрузки!$A$6:$A$10000<$B$3)+0)=2,COUNTIF(B$5:B16,Выгрузки!$D$6:$D$10000),\"\"),0)),\"-\")","v":"-"},{"$f":"IF(B17=\"-\",\"-\",COUNTIFS(Выгрузки!$D:$D,$B17,Выгрузки!$A:$A,\">=\"&$B$2,Выгрузки!A:A,\"<=\"&$B$3))","v":"-"}]
[{"$f":"IF(B18=\"-\",\"-\",MAX(A$5:A17)+1)","v":"-"},{"$f":"IFERROR(INDEX(Выгрузки!$D$6:$D$10000,MATCH(0,IF(((Выгрузки!$A$6:$A$10000>=$B$2)+(Выгрузки!$A$6:$A$10000<$B$3)+0)=2,COUNTIF(B$5:B17,Выгрузки!$D$6:$D$10000),\"\"),0)),\"-\")","v":"-"},{"$f":"IF(B18=\"-\",\"-\",COUNTIFS(Выгрузки!$D:$D,$B18,Выгрузки!$A:$A,\">=\"&$B$2,Выгрузки!A:A,\"<=\"&$B$3))","v":"-"}]
[{"$f":"IF(B19=\"-\",\"-\",MAX(A$5:A18)+1)","v":"-"},{"$f":"IFERROR(INDEX(Выгрузки!$D$6:$D$10000,MATCH(0,IF(((Выгрузки!$A$6:$A$10000>=$B$2)+(Выгрузки!$A$6:$A$10000<$B$3)+0)=2,COUNTIF(B$5:B18,Выгрузки!$D$6:$D$10000),\"\"),0)),\"-\")","v":"-"},{"$f":"IF(B19=\"-\",\"-\",COUNTIFS(Выгрузки!$D:$D,$B19,Выгрузки!$A:$A,\">=\"&$B$2,Выгрузки!A:A,\"<=\"&$B$3))","v":"-"}]
[{"$f":"IF(B20=\"-\",\"-\",MAX(A$5:A19)+1)","v":"-"},{"$f":"IFERROR(INDEX(Выгрузки!$D$6:$D$10000,MATCH(0,IF(((Выгрузки!$A$6:$A$10000>=$B$2)+(Выгрузки!$A$6:$A$10000<$B$3)+0)=2,COUNTIF(B$5:B19,Выгрузки!$D$6:$D$10000),\"\"),0)),\"-\")","v":"-"},{"$f":"IF(B20=\"-\",\"-\",COUNTIFS(Выгрузки!$D:$D,$B20,Выгрузки!$A:$A,\">=\"&$B$2,Выгрузки!A:A,\"<=\"&$B$3))","v":"-"}]
[{"$f":"IF(B21=\"-\",\"-\",MAX(A$5:A20)+1)","v":"-"},{"$f":"IFERROR(INDEX(Выгрузки!$D$6:$D$10000,MATCH(0,IF(((Выгрузки!$A$6:$A$10000>=$B$2)+(Выгрузки!$A$6:$A$10000<$B$3)+0)=2,COUNTIF(B$5:B20,Выгрузки!$D$6:$D$10000),\"\"),0)),\"-\")","v":"-"},{"$f":"IF(B21=\"-\",\"-\",COUNTIFS(Выгрузки!$D:$D,$B21,Выгрузки!$A:$A,\">=\"&$B$2,Выгрузки!A:A,\"<=\"&$B$3))","v":"-"}]
[{"$f":"IF(B22=\"-\",\"-\",MAX(A$5:A21)+1)","v":"-"},{"$f":"IFERROR(INDEX(Выгрузки!$D$6:$D$10000,MATCH(0,IF(((Выгрузки!$A$6:$A$10000>=$B$2)+(Выгрузки!$A$6:$A$10000<$B$3)+0)=2,COUNTIF(B$5:B21,Выгрузки!$D$6:$D$10000),\"\"),0)),\"-\")","v":"-"},{"$f":"IF(B22=\"-\",\"-\",COUNTIFS(Выгрузки!$D:$D,$B22,Выгрузки!$A:$A,\">=\"&$B$2,Выгрузки!A:A,\"<=\"&$B$3))","v":"-"}]
[{"$f":"IF(B23=\"-\",\"-\",MAX(A$5:A22)+1)","v":"-"},{"$f":"IFERROR(INDEX(Выгрузки!$D$6:$D$10000,MATCH(0,IF(((Выгрузки!$A$6:$A$10000>=$B$2)+(Выгрузки!$A$6:$A$10000<$B$3)+0)=2,COUNTIF(B$5:B22,Выгрузки!$D$6:$D$10000),\"\"),0)),\"-\")","v":"-"},{"$f":"IF(B23=\"-\",\"-\",COUNTIFS(Выгрузки!$D:$D,$B23,Выгрузки!$A:$A,\">=\"&$B$2,Выгрузки!A:A,\"<=\"&$B$3))","v":"-"}]
[{"$f":"IF(B24=\"-\",\"-\",MAX(A$5:A23)+1)","v":"-"},{"$f":"IFERROR(INDEX(Выгрузки!$D$6:$D$10000,MATCH(0,IF(((Выгрузки!$A$6:$A$10000>=$B$2)+(Выгрузки!$A$6:$A$10000<$B$3)+0)=2,COUNTIF(B$5:B23,Выгрузки!$D$6:$D$10000),\"\"),0)),\"-\")","v":"-"},{"$f":"IF(B24=\"-\",\"-\",COUNTIFS(Выгрузки!$D:$D,$B24,Выгрузки!$A:$A,\">=\"&$B$2,Выгрузки!A:A,\"<=\"&$B$3))","v":"-"}]
[{"$f":"IF(B25=\"-\",\"-\",MAX(A$5:A24)+1)","v":"-"},{"$f":"IFERROR(INDEX(Выгрузки!$D$6:$D$10000,MATCH(0,IF(((Выгрузки!$A$6:$A$10000>=$B$2)+(Выгрузки!$A$6:$A$10000<$B$3)+0)=2,COUNTIF(B$5:B24,Выгрузки!$D$6:$D$10000),\"\"),0)),\"-\")","v":"-"},{"$f":"IF(B25=\"-\",\"-\",COUNTIFS(Выгрузки!$D:$D,$B25,Выгрузки!$A:$A,\">=\"&$B$2,Выгрузки!A:A,\"<=\"&$B$3))","v":"-"}]
[{"$f":"IF(B26=\"-\",\"-\",MAX(A$5:A25)+1)","v":"-"},{"$f":"IFERROR(INDEX(Выгрузки!$D$6:$D$10000,MATCH(0,IF(((Выгрузки!$A$6:$A$10000>=$B$2)+(Выгрузки!$A$6:$A$10000<$B$3)+0)=2,COUNTIF(B$5:B25,Выгрузки!$D$6:$D$10000),\"\"),0)),\"-\")","v":"-"},{"$f":"IF(B26=\"-\",\"-\",COUNTIFS(Выгрузки!$D:$D,$B26,Выгрузки!$A:$A,\">=\"&$B$2,Выгрузки!A:A,\"<=\"&$B$3))","v":"-"}]
[{"$f":"IF(B27=\"-\",\"-\",MAX(A$5:A26)+1)","v":"-"},{"$f":"IFERROR(INDEX(Выгрузки!$D$6:$D$10000,MATCH(0,IF(((Выгрузки!$A$6:$A$10000>=$B$2)+(Выгрузки!$A$6:$A$10000<$B$3)+0)=2,COUNTIF(B$5:B26,Выгрузки!$D$6:$D$10000),\"\"),0)),\"-\")","v":"-"},{"$f":"IF(B27=\"-\",\"-\",COUNTIFS(Выгрузки!$D:$D,$B27,Выгрузки!$A:$A,\">=\"&$B$2,Выгрузки!A:A,\"<=\"&$B$3))","v":"-"}]
[{"$f":"IF(B28=\"-\",\"-\",MAX(A$5:A27)+1)","v":"-"},{"$f":"IFERROR(INDEX(Выгрузки!$D$6:$D$10000,MATCH(0,IF(((Выгрузки!$A$6:$A$10000>=$B$2)+(Выгрузки!$A$6:$A$10000<$B$3)+0)=2,COUNTIF(B$5:B27,Выгрузки!$D$6:$D$10000),\"\"),0)),\"-\")","v":"-"},{"$f":"IF(B28=\"-\",\"-\",COUNTIFS(Выгрузки!$D:$D,$B28,Выгрузки!$A:$A,\">=\"&$B$2,Выгрузки!A:A,\"<=\"&$B$3))","v":"-"}]
[{"$f":"IF(B29=\"-\",\"-\",MAX(A$5:A28)+1)","v":"-"},{"$f":"IFERROR(INDEX(Выгрузки!$D$6:$D$10000,MATCH(0,IF(((Выгрузки!$A$6:$A$10000>=$B$2)+(Выгрузки!$A$6:$A$10000<$B$3)+0)=2,COUNTIF(B$5:B28,Выгрузки!$D$6:$D$10000),\"\"),0)),\"-\")","v":"-"},{"$f":"IF(B29=\"-\",\"-\",COUNTIFS(Выгрузки!$D:$D,$B29,Выгрузки!$A:$A,\">=\"&$B$2,Выгрузки!A:A,\"<=\"&$B$3))","v":"-"}]
[{"$f":"IF(B30=\"-\",\"-\",MAX(A$5:A29)+1)","v":"-"},{"$f":"IFERROR(INDEX(Выгрузки!$D$6:$D$10000,MATCH(0,IF(((Выгрузки!$A$6:$A$10000>=$B$2)+(Выгрузки!$A$6:$A$10000<$B$3)+0)=2,COUNTIF(B$5:B29,Выгрузки!$D$6:$D$10000),\"\"),0)),\"-\")","v":"-"},{"$f":"IF(B30=\"-\",\"-\",COUNTIFS(Выгрузки!$D:$D,$B30,Выгрузки!$A:$A,\">=\"&$B$2,Выгрузки!A:A,\"<=\"&$B$3))","v":"-"}]
[{"$f":"IF(B31=\"-\",\"-\",MAX(A$5:A30)+1)","v":"-"},{"$f":"IFERROR(INDEX(Выгрузки!$D$6:$D$10000,MATCH(0,IF(((Выгрузки!$A$6:$A$10000>=$B$2)+(Выгрузки!$A$6:$A$10000<$B$3)+0)=2,COUNTIF(B$5:B30,Выгрузки!$D$6:$D$10000),\"\"),0)),\"-\")","v":"-"},{"$f":"IF(B31=\"-\",\"-\",COUNTIFS(Выгрузки!$D:$D,$B31,Выгрузки!$A:$A,\">=\"&$B$2,Выгрузки!A:A,\"<=\"&$B$3))","v":"-"}]
[{"$f":"IF(B32=\"-\",\"-\",MAX(A$5:A31)+1)","v":"-"},{"$f":"IFERROR(INDEX(Выгрузки!$D$6:$D$10000,MATCH(0,IF(((Выгрузки!$A$6:$A$10000>=$B$2)+(Выгрузки!$A$6:$A$10000<$B$3)+0)=2,COUNTIF(B$5:B31,Выгрузки!$D$6:$D$10000),\"\"),0)),\"-\")","v":"-"},{"$f":"IF(B32=\"-\",\"-\",COUNTIFS(Выгрузки!$D:$D,$B32,Выгрузки!$A:$A,\">=\"&$B$2,Выгрузки!A:A,\"<=\"&$B$3))","v":"-"}]
[{"$f":"IF(B33=\"-\",\"-\",MAX(A$5:A32)+1)","v":"-"},{"$f":"IFERROR(INDEX(Выгрузки!$D$6:$D$10000,MATCH(0,IF(((Выгрузки!$A$6:$A$10000>=$B$2)+(Выгрузки!$A$6:$A$10000<$B$3)+0)=2,COUNTIF(B$5:B32,Выгрузки!$D$6:$D$10000),\"\"),0)),\"-\")","v":"-"},{"$f":"IF(B33=\"-\",\"-\",COUNTIFS(Выгрузки!$D:$D,$B33,Выгрузки!$A:$A,\">=\"&$B$2,Выгрузки!A:A,\"<=\"&$B$3))","v":"-"}]
[{"$f":"IF(B34=\"-\",\"-\",MAX(A$5:A33)+1)","v":"-"},{"$f":"IFERROR(INDEX(Выгрузки!$D$6:$D$10000,MATCH(0,IF(((Выгрузки!$A$6:$A$10000>=$B$2)+(Выгрузки!$A$6:$A$10000<$B$3)+0)=2,COUNTIF(B$5:B33,Выгрузки!$D$6:$D$10000),\"\"),0)),\"-\")","v":"-"},{"$f":"IF(B34=\"-\",\"-\",COUNTIFS(Выгрузки!$D:$D,$B34,Выгрузки!$A:$A,\">=\"&$B$2,Выгрузки!A:A,\"<=\"&$B$3))","v":"-"}]
[{"$f":"IF(B35=\"-\",\"-\",MAX(A$5:A34)+1)","v":"-"},{"$f":"IFERROR(INDEX(Выгрузки!$D$6:$D$10000,MATCH(0,IF(((Выгрузки!$A$6:$A$10000>=$B$2)+(Выгрузки!$A$6:$A$10000<$B$3)+0)=2,COUNTIF(B$5:B34,Выгрузки!$D$6:$D$10000),\"\"),0)),\"-\")","v":"-"},{"$f":"IF(B35=\"-\",\"-\",COUNTIFS(Выгрузки!$D:$D,$B35,Выгрузки!$A:$A,\">=\"&$B$2,Выгрузки!A:A,\"<=\"&$B$3))","v":"-"}]
[{"$f":"IF(B36=\"-\",\"-\",MAX(A$5:A35)+1)","v":"-"},{"$f":"IFERROR(INDEX(Выгрузки!$D$6:$D$10000,MATCH(0,IF(((Выгрузки!$A$6:$A$10000>=$B$2)+(Выгрузки!$A$6:$A$10000<$B$3)+0)=2,COUNTIF(B$5:B35,Выгрузки!$D$6:$D$10000),\"\"),0)),\"-\")","v":"-"},{"$f":"IF(B36=\"-\",\"-\",COUNTIFS(Выгрузки!$D:$D,$B36,Выгрузки!$A:$A,\">=\"&$B$2,Выгрузки!A:A,\"<=\"&$B$3))","v":"-"}]
[{"$f":"IF(B37=\"-\",\"-\",MAX(A$5:A36)+1)","v":"-"},{"$f":"IFERROR(INDEX(Выгрузки!$D$6:$D$10000,MATCH(0,IF(((Выгрузки!$A$6:$A$10000>=$B$2)+(Выгрузки!$A$6:$A$10000<$B$3)+0)=2,COUNTIF(B$5:B36,Выгрузки!$D$6:$D$10000),\"\"),0)),\"-\")","v":"-"},{"$f":"IF(B37=\"-\",\"-\",COUNTIFS(Выгрузки!$D:$D,$B37,Выгрузки!$A:$A,\">=\"&$B$2,Выгрузки!A:A,\"<=\"&$B$3))","v":"-"}]
[{"$f":"IF(B38=\"-\",\"-\",MAX(A$5:A37)+1)","v":"-"},{"$f":"IFERROR(INDEX(Выгрузки!$D$6:$D$10000,MATCH(0,IF(((Выгрузки!$A$6:$A$10000>=$B$2)+(Выгрузки!$A$6:$A$10000<$B$3)+0)=2,COUNTIF(B$5:B37,Выгрузки!$D$6:$D$10000),\"\"),0)),\"-\")","v":"-"},{"$f":"IF(B38=\"-\",\"-\",COUNTIFS(Выгрузки!$D:$D,$B38,Выгрузки!$A:$A,\">=\"&$B$2,Выгрузки!A:A,\"<=\"&$B$3))","v":"-"}]
[{"$f":"IF(B39=\"-\",\"-\",MAX(A$5:A38)+1)","v":"-"},{"$f":"IFERROR(INDEX(Выгрузки!$D$6:$D$10000,MATCH(0,IF(((Выгрузки!$A$6:$A$10000>=$B$2)+(Выгрузки!$A$6:$A$10000<$B$3)+0)=2,COUNTIF(B$5:B38,Выгрузки!$D$6:$D$10000),\"\"),0)),\"-\")","v":"-"},{"$f":"IF(B39=\"-\",\"-\",COUNTIFS(Выгрузки!$D:$D,$B39,Выгрузки!$A:$A,\">=\"&$B$2,Выгрузки!A:A,\"<=\"&$B$3))","v":"-"}]
[{"$f":"IF(B40=\"-\",\"-\",MAX(A$5:A39)+1)","v":"-"},{"$f":"IFERROR(INDEX(Выгрузки!$D$6:$D$10000,MATCH(0,IF(((Выгрузки!$A$6:$A$10000>=$B$2)+(Выгрузки!$A$6:$A$10000<$B$3)+0)=2,COUNTIF(B$5:B39,Выгрузки!$D$6:$D$10000),\"\"),0)),\"-\")","v":"-"},{"$f":"IF(B40=\"-\",\"-\",COUNTIFS(Выгрузки!$D:$D,$B40,Выгрузки!$A:$A,\">=\"&$B$2,Выгрузки!A:A,\"<=\"&$B$3))","v":"-"}]
[{"$f":"IF(B41=\"-\",\"-\",MAX(A$5:A40)+1)","v":"-"},{"$f":"IFERROR(INDEX(Выгрузки!$D$6:$D$10000,MATCH(0,IF(((Выгрузки!$A$6:$A$10000>=$B$2)+(Выгрузки!$A$6:$A$10000<$B$3)+0)=2,COUNTIF(B$5:B40,Выгрузки!$D$6:$D$10000),\"\"),0)),\"-\")","v":"-"},{"$f":"IF(B41=\"-\",\"-\",COUNTIFS(Выгрузки!$D:$D,$B41,Выгрузки!$A:$A,\">=\"&$B$2,Выгрузки!A:A,\"<=\"&$B$3))","v":"-"}]
[{"$f":"IF(B42=\"-\",\"-\",MAX(A$5:A41)+1)","v":"-"},{"$f":"IFERROR(INDEX(Выгрузки!$D$6:$D$10000,MATCH(0,IF(((Выгрузки!$A$6:$A$10000>=$B$2)+(Выгрузки!$A$6:$A$10000<$B$3)+0)=2,COUNTIF(B$5:B41,Выгрузки!$D$6:$D$10000),\"\"),0)),\"-\")","v":"-"},{"$f":"IF(B42=\"-\",\"-\",COUNTIFS(Выгрузки!$D:$D,$B42,Выгрузки!$A:$A,\">=\"&$B$2,Выгрузки!A:A,\"<=\"&$B$3))","v":"-"}]
[{"$f":"IF(B43=\"-\",\"-\",MAX(A$5:A42)+1)","v":"-"},{"$f":"IFERROR(INDEX(Выгрузки!$D$6:$D$10000,MATCH(0,IF(((Выгрузки!$A$6:$A$10000>=$B$2)+(Выгрузки!$A$6:$A$10000<$B$3)+0)=2,COUNTIF(B$5:B42,Выгрузки!$D$6:$D$10000),\"\"),0)),\"-\")","v":"-"},{"$f":"IF(B43=\"-\",\"-\",COUNTIFS(Выгрузки!$D:$D,$B43,Выгрузки!$A:$A,\">=\"&$B$2,Выгрузки!A:A,\"<=\"&$B$3))","v":"-"}]
[{"$f":"IF(B44=\"-\",\"-\",MAX(A$5:A43)+1)","v":"-"},{"$f":"IFERROR(INDEX(Выгрузки!$D$6:$D$10000,MATCH(0,IF(((Выгрузки!$A$6:$A$10000>=$B$2)+(Выгрузки!$A$6:$A$10000<$B$3)+0)=2,COUNTIF(B$5:B43,Выгрузки!$D$6:$D$10000),\"\"),0)),\"-\")","v":"-"},{"$f":"IF(B44=\"-\",\"-\",COUNTIFS(Выгрузки!$D:$D,$B44,Выгрузки!$A:$A,\">=\"&$B$2,Выгрузки!A:A,\"<=\"&$B$3))","v":"-"}]
[{"$f":"IF(B45=\"-\",\"-\",MAX(A$5:A44)+1)","v":"-"},{"$f":"IFERROR(INDEX(Выгрузки!$D$6:$D$10000,MATCH(0,IF(((Выгрузки!$A$6:$A$10000>=$B$2)+(Выгрузки!$A$6:$A$10000<$B$3)+0)=2,COUNTIF(B$5:B44,Выгрузки!$D$6:$D$10000),\"\"),0)),\"-\")","v":"-"},{"$f":"IF(B45=\"-\",\"-\",COUNTIFS(Выгрузки!$D:$D,$B45,Выгрузки!$A:$A,\">=\"&$B$2,Выгрузки!A:A,\"<=\"&$B$3))","v":"-"}]
[{"$f":"IF(B46=\"-\",\"-\",MAX(A$5:A45)+1)","v":"-"},{"$f":"IFERROR(INDEX(Выгрузки!$D$6:$D$10000,MATCH(0,IF(((Выгрузки!$A$6:$A$10000>=$B$2)+(Выгрузки!$A$6:$A$10000<$B$3)+0)=2,COUNTIF(B$5:B45,Выгрузки!$D$6:$D$10000),\"\"),0)),\"-\")","v":"-"},{"$f":"IF(B46=\"-\",\"-\",COUNTIFS(Выгрузки!$D:$D,$B46,Выгрузки!$A:$A,\">=\"&$B$2,Выгрузки!A:A,\"<=\"&$B$3))","v":"-"}]
[{"$f":"IF(B47=\"-\",\"-\",MAX(A$5:A46)+1)","v":"-"},{"$f":"IFERROR(INDEX(Выгрузки!$D$6:$D$10000,MATCH(0,IF(((Выгрузки!$A$6:$A$10000>=$B$2)+(Выгрузки!$A$6:$A$10000<$B$3)+0)=2,COUNTIF(B$5:B46,Выгрузки!$D$6:$D$10000),\"\"),0)),\"-\")","v":"-"},{"$f":"IF(B47=\"-\",\"-\",COUNTIFS(Выгрузки!$D:$D,$B47,Выгрузки!$A:$A,\">=\"&$B$2,Выгрузки!A:A,\"<=\"&$B$3))","v":"-"}]
[{"$f":"IF(B48=\"-\",\"-\",MAX(A$5:A47)+1)","v":"-"},{"$f":"IFERROR(INDEX(Выгрузки!$D$6:$D$10000,MATCH(0,IF(((Выгрузки!$A$6:$A$10000>=$B$2)+(Выгрузки!$A$6:$A$10000<$B$3)+0)=2,COUNTIF(B$5:B47,Выгрузки!$D$6:$D$10000),\"\"),0)),\"-\")","v":"-"},{"$f":"IF(B48=\"-\",\"-\",COUNTIFS(Выгрузки!$D:$D,$B48,Выгрузки!$A:$A,\">=\"&$B$2,Выгрузки!A:A,\"<=\"&$B$3))","v":"-"}]
[{"$f":"IF(B49=\"-\",\"-\",MAX(A$5:A48)+1)","v":"-"},{"$f":"IFERROR(INDEX(Выгрузки!$D$6:$D$10000,MATCH(0,IF(((Выгрузки!$A$6:$A$10000>=$B$2)+(Выгрузки!$A$6:$A$10000<$B$3)+0)=2,COUNTIF(B$5:B48,Выгрузки!$D$6:$D$10000),\"\"),0)),\"-\")","v":"-"},{"$f":"IF(B49=\"-\",\"-\",COUNTIFS(Выгрузки!$D:$D,$B49,Выгрузки!$A:$A,\">=\"&$B$2,Выгрузки!A:A,\"<=\"&$B$3))","v":"-"}]
[{"$f":"IF(B50=\"-\",\"-\",MAX(A$5:A49)+1)","v":"-"},{"$f":"IFERROR(INDEX(Выгрузки!$D$6:$D$10000,MATCH(0,IF(((Выгрузки!$A$6:$A$10000>=$B$2)+(Выгрузки!$A$6:$A$10000<$B$3)+0)=2,COUNTIF(B$5:B49,Выгрузки!$D$6:$D$10000),\"\"),0)),\"-\")","v":"-"},{"$f":"IF(B50=\"-\",\"-\",COUNTIFS(Выгрузки!$D:$D,$B50,Выгрузки!$A:$A,\">=\"&$B$2,Выгрузки!A:A,\"<=\"&$B$3))","v":"-"}]